{"text_format":"1","workbook":"xlsx","n_sheets":6,"sheets":["Instructions","BA-Scorecard","IA-Scorecard","TA-Scorecard","7S&C Scorecard","Validation"],"not_rendered":{"charts":0,"images":2,"macros":1,"external_links":0,"defined_names":4,"comments":0,"pivot_tables":0},"unopened":[],"bounds":{"document_bytes":16777216,"sheet_cells":100000,"rows_first":2000,"rows_last":500,"rows_between":2000,"halvings":0,"cell_chars":16384,"cell_head_chars":4096},"cells_cut":0,"cells_raw":0,"read":"whole","date_system":"1900"}

{"sheet":"Instructions","index":0,"n_rows":13,"n_cols":4,"rows_kept":13,"cut":false,"hidden":false,"merged":[[2,1,2,2]]}
[]
[]
[null,"Instructions for filling out the electronic State Self-Assessment (eSS-A) Scorecards (v03 Sept 2014):\n"]
[null,"•","This  Workbook (aka eSS-A Scorecard Template) contains five tabs:  Instructions (this tab), BA-Scorecard (Business Architecture),  IA-Scorecard (Information Architecture), TA-Scorecard (Technical Architecture),and 7S&C-Scorecard (Seven Standards and Conditions)\n","   "]
[null,"•","The tab names are fixed and should not be renamed. These are used by CMS for processing of the eSS-A Scorecards \n"]
[null,"•","When first opening a Scorecard tab, the appropriate Assessment Program and State should be set. This is done by clicking and selecting values in two (2) drop-down menus shown in Row 2 of each Scorecard tab. When a program is selected, the display will automatically update to show only the required rows  (i.e. the required Business Areas for the selected Assessment Program)\n         -   Assessment Program enables tailoring of the MITA Business Processes based on the scope of the SMA programs under assessment. There  are 15 MITA Business Processes identified that are related to the HITECH program, therefore 15 Business processes will automatically be displayed when HITECH is selected in the Assessment Program Drop-down menu. If the Assessment Program selected is Enterprise, then all 10 Business Areas and all 80 business processes will be displayed in the BA Worksheet"]
[]
[null,"•","Complete the following columns for each worksheet:\nBA-Scorecard, columns D through I\nIA-Scorecard, columns C through F\nTA- Scorecard, columns D through G\n7S&C-Scorecard, columns D through G\n"]
[null,"•","The last two columns in each Scorecard tab contain formulas which automatically compute the \"As-Is\" and \"To-Be\" architecture Profiles as these values are entered by user"]
[null,null,"     -     For more information on MITA Architecture Profiles, please refer to SS-A Companion Guide.  \n"]
[null,"•","Save the completed workbook when data entry is complete. Include the State abbreviation of the SS-A State on the workbook filename for visual identification and matching (e.g. for the State of Utah, the State abbreviation could be appended onto the Workbook filename i.e. Scorecard_Templates_UT.xlsm)"]
[]
[null,"•","Send the completed Scorecards back to CMCS.\n"]

{"sheet":"BA-Scorecard","index":1,"n_rows":484,"n_cols":21,"rows_kept":484,"cut":false,"hidden":false,"merged":[[4,9,9,9],[4,10,9,10],[10,9,15,9],[10,10,15,10],[0,0,0,8],[0,9,2,10],[2,3,2,4],[2,6,2,7],[2,0,3,0],[2,1,3,1],[2,2,3,2],[2,5,3,5],[34,9,39,9],[34,10,39,10],[40,9,45,9],[40,10,45,10],[46,9,51,9],[46,10,51,10],[16,9,21,9],[16,10,21,10],[22,9,27,9],[22,10,27,10],[28,9,33,9],[28,10,33,10],[82,9,87,9],[82,10,87,10],[88,9,93,9],[88,10,93,10],[94,9,99,9],[94,10,99,10],[52,9,57,9],[52,10,57,10],[58,9,63,9],[58,10,63,10],[76,9,81,9],[76,10,81,10],[64,9,69,9],[64,10,69,10],[70,9,75,9],[70,10,75,10],[118,9,123,9],[118,10,123,10],[124,9,129,9],[124,10,129,10],[130,9,135,9],[130,10,135,10],[100,9,105,9],[100,10,105,10],[106,9,111,9],[106,10,111,10],[112,9,117,9],[112,10,117,10],[154,9,159,9],[154,10,159,10],[160,9,165,9],[160,10,165,10],[166,9,171,9],[166,10,171,10],[136,9,141,9],[136,10,141,10],[142,9,147,9],[142,10,147,10],[148,9,153,9],[148,10,153,10],[190,9,195,9],[190,10,195,10],[196,9,201,9],[196,10,201,10],[202,9,207,9],[202,10,207,10],[172,9,177,9],[172,10,177,10],[178,9,183,9],[178,10,183,10],[184,9,189,9],[184,10,189,10],[226,9,231,9],[226,10,231,10],[232,9,237,9],[232,10,237,10],[238,9,243,9],[238,10,243,10],[208,9,213,9],[208,10,213,10],[214,9,219,9],[214,10,219,10],[220,9,225,9],[220,10,225,10],[262,9,267,9],[262,10,267,10],[268,9,273,9],[268,10,273,10],[274,9,279,9],[274,10,279,10],[244,9,249,9],[244,10,249,10],[250,9,255,9],[250,10,255,10],[256,9,261,9],[256,10,261,10],[298,9,303,9],[298,10,303,10],[304,9,309,9],[304,10,309,10],[310,9,315,9],[310,10,315,10],[280,9,285,9],[280,10,285,10],[286,9,291,9],[286,10,291,10],[292,9,297,9],[292,10,297,10],[334,9,339,9],[334,10,339,10],[340,9,345,9],[340,10,345,10],[346,9,351,9],[346,10,351,10],[316,9,321,9],[316,10,321,10],[322,9,327,9],[322,10,327,10],[328,9,333,9],[328,10,333,10],[370,9,375,9],[370,10,375,10],[376,9,381,9],[376,10,381,10],[382,9,387,9],[382,10,387,10],[352,9,357,9],[352,10,357,10],[358,9,363,9],[358,10,363,10],[364,9,369,9],[364,10,369,10],[406,9,411,9],[406,10,411,10],[412,9,417,9],[412,10,417,10],[418,9,423,9],[418,10,423,10],[388,9,393,9],[388,10,393,10],[394,9,399,9],[394,10,399,10],[400,9,405,9],[400,10,405,10],[442,9,447,9],[442,10,447,10],[448,9,453,9],[448,10,453,10],[454,9,459,9],[454,10,459,10],[424,9,429,9],[424,10,429,10],[430,9,435,9],[430,10,435,10],[436,9,441,9],[436,10,441,10],[478,9,483,9],[478,10,483,10],[484,9,489,9],[484,10,489,10],[460,9,465,9],[460,10,465,10],[466,9,471,9],[466,10,471,10],[472,9,477,9],[472,10,477,10]]}
["MITA Business Architecture (BA) Scorecard\nNote: Before starting, select Assessment Program and State ID below",null,null,null,null,null,null,null,null,"Overall Profile by Business Area"]
["Assessment Program:  ","Select Program","State:  ","Select State"]
["Business Area","Business Process","Business Capability/Quality"," Performance Measure",null," Supporting Evidence","Business Capability Level",null,"Assessment"]
[null,null,null,"As-Is Performance","To-Be Performance",null,"As-Is","To-Be","Date","As-Is","To-Be"]
["Business Relationship Management","BR01 Establish Business Relationship","Timeliness of Process ",null,null,null,null,null,null,{"$f":"CONCATENATE(\"Level\",\" \",MIN(G5:G10))","v":"Level 0"},{"$f":"CONCATENATE(\"Level\",\" \",MIN(H5:H10))","v":"Level 0"},null,null,null,null,null,null,null,null,"Enterprise","HITECH"]
["Business Relationship Management","BR01 Establish Business Relationship","Data Access and Accuracy",null,null,null,null,null,null,null,null,null,null,null,null,null,null,null,null,"Enterprise","HITECH"]
["Business Relationship Management","BR01 Establish Business Relationship","Cost-Effectiveness",null,null,null,null,null,null,null,null,null,null,null,null,null,null,null,null,"Enterprise","HITECH"]
["Business Relationship Management","BR01 Establish Business Relationship","Effort to Perform; Efficiency",null,null,null,null,null,null,null,null,null,null,null,null,null,null,null,null,"Enterprise","HITECH"]
["Business Relationship Management","BR01 Establish Business Relationship","Accuracy of Process Results",null,null,null,null,null,null,null,null,null,null,null,null,null,null,null,null,"Enterprise","HITECH"]
["Business Relationship Management","BR01 Establish Business Relationship","Utility or Value to Stakeholder",null,null,null,null,null,null,null,null,null,null,null,null,null,null,null,null,"Enterprise","HITECH"]
["Business Relationship Management","BR02 Manage Business Relationship Communication","Timeliness of Process ",null,null,null,null,null,null,{"$f":"CONCATENATE(\"Level\",\" \",MIN(G11:G16))","v":"Level 0"},{"$f":"CONCATENATE(\"Level\",\" \",MIN(H11:H16))","v":"Level 0"},null,null,null,null,null,null,null,null,"Enterprise"]
["Business Relationship Management","BR02 Manage Business Relationship Communication","Data Access and Accuracy",null,null,null,null,null,null,null,null,null,null,null,null,null,null,null,null,"Enterprise"]
["Business Relationship Management","BR02 Manage Business Relationship Communication","Cost-Effectiveness",null,null,null,null,null,null,null,null,null,null,null,null,null,null,null,null,"Enterprise"]
["Business Relationship Management","BR02 Manage Business Relationship Communication","Effort to Perform; Efficiency",null,null,null,null,null,null,null,null,null,null,null,null,null,null,null,null,"Enterprise"]
["Business Relationship Management","BR02 Manage Business Relationship Communication","Accuracy of Process Results",null,null,null,null,null,null,null,null,null,null,null,null,null,null,null,null,"Enterprise"]
["Business Relationship Management","BR02 Manage Business Relationship Communication","Utility or Value to Stakeholder",null,null,null,null,null,null,null,null,null,null,null,null,null,null,null,null,"Enterprise"]
["Business Relationship Management","BR03 Manage Business Relationship Information","Timeliness of Process ",null,null,null,null,null,null,{"$f":"CONCATENATE(\"Level\",\" \",MIN(G17:G22))","v":"Level 0"},{"$f":"CONCATENATE(\"Level\",\" \",MIN(H17:H22))","v":"Level 0"},null,null,null,null,null,null,null,null,"Enterprise"]
["Business Relationship Management","BR03 Manage Business Relationship Information","Data Access and Accuracy",null,null,null,null,null,null,null,null,null,null,null,null,null,null,null,null,"Enterprise"]
["Business Relationship Management","BR03 Manage Business Relationship Information","Cost-Effectiveness",null,null,null,null,null,null,null,null,null,null,null,null,null,null,null,null,"Enterprise"]
["Business Relationship Management","BR03 Manage Business Relationship Information","Effort to Perform; Efficiency",null,null,null,null,null,null,null,null,null,null,null,null,null,null,null,null,"Enterprise"]
["Business Relationship Management","BR03 Manage Business Relationship Information","Accuracy of Process Results",null,null,null,null,null,null,null,null,null,null,null,null,null,null,null,null,"Enterprise"]
["Business Relationship Management","BR03 Manage Business Relationship Information","Utility or Value to Stakeholder",null,null,null,null,null,null,null,null,null,null,null,null,null,null,null,null,"Enterprise"]
["Business Relationship Management","BR04 Terminate Business Relationship","Timeliness of Process ",null,null,null,null,null,null,{"$f":"CONCATENATE(\"Level\",\" \",MIN(G23:G28))","v":"Level 0"},{"$f":"CONCATENATE(\"Level\",\" \",MIN(H23:H28))","v":"Level 0"},null,null,null,null,null,null,null,null,"Enterprise"]
["Business Relationship Management","BR04 Terminate Business Relationship","Data Access and Accuracy",null,null,null,null,null,null,null,null,null,null,null,null,null,null,null,null,"Enterprise"]
["Business Relationship Management","BR04 Terminate Business Relationship","Cost-Effectiveness",null,null,null,null,null,null,null,null,null,null,null,null,null,null,null,null,"Enterprise"]
["Business Relationship Management","BR04 Terminate Business Relationship","Effort to Perform; Efficiency",null,null,null,null,null,null,null,null,null,null,null,null,null,null,null,null,"Enterprise"]
["Business Relationship Management","BR04 Terminate Business Relationship","Accuracy of Process Results",null,null,null,null,null,null,null,null,null,null,null,null,null,null,null,null,"Enterprise"]
["Business Relationship Management","BR04 Terminate Business Relationship","Utility or Value to Stakeholder",null,null,null,null,null,null,null,null,null,null,null,null,null,null,null,null,"Enterprise"]
["Care Management","CM01 Establish Case","Timeliness of Process ",null,null,null,null,null,null,{"$f":"CONCATENATE(\"Level\",\" \",MIN(G29:G34))","v":"Level 0"},"Level 0",null,null,null,null,null,null,null,null,"Enterprise"]
["Care Management","CM01 Establish Case","Data Access and Accuracy",null,null,null,null,null,null,null,null,null,null,null,null,null,null,null,null,"Enterprise"]
["Care Management","CM01 Establish Case","Cost-Effectiveness",null,null,null,null,null,null,null,null,null,null,null,null,null,null,null,null,"Enterprise"]
["Care Management","CM01 Establish Case","Effort to Perform; Efficiency",null,null,null,null,null,null,null,null,null,null,null,null,null,null,null,null,"Enterprise"]
["Care Management","CM01 Establish Case","Accuracy of Process Results",null,null,null,null,null,null,null,null,null,null,null,null,null,null,null,null,"Enterprise"]
["Care Management","CM01 Establish Case","Utility or Value to Stakeholder",null,null,null,null,null,null,null,null,null,null,null,null,null,null,null,null,"Enterprise"]
["Care Management","CM02 Manage Case Information","Timeliness of Process ",null,null,null,null,null,null,{"$f":"CONCATENATE(\"Level\",\" \",MIN(G35:G40))","v":"Level 0"},"Level 0",null,null,null,null,null,null,null,null,"Enterprise"]
["Care Management","CM02 Manage Case Information","Data Access and Accuracy",null,null,null,null,null,null,null,null,null,null,null,null,null,null,null,null,"Enterprise"]
["Care Management","CM02 Manage Case Information","Cost-Effectiveness",null,null,null,null,null,null,null,null,null,null,null,null,null,null,null,null,"Enterprise"]
["Care Management","CM02 Manage Case Information","Effort to Perform; Efficiency",null,null,null,null,null,null,null,null,null,null,null,null,null,null,null,null,"Enterprise"]
["Care Management","CM02 Manage Case Information","Accuracy of Process Results",null,null,null,null,null,null,null,null,null,null,null,null,null,null,null,null,"Enterprise"]
["Care Management","CM02 Manage Case Information","Utility or Value to Stakeholder",null,null,null,null,null,null,null,null,null,null,null,null,null,null,null,null,"Enterprise"]
["Care Management","CM03 Manage Population Health Outreach","Timeliness of Process ",null,null,null,null,null,null,{"$f":"CONCATENATE(\"Level\",\" \",MIN(G41:G46))","v":"Level 0"},"Level 0",null,null,null,null,null,null,null,null,"Enterprise"]
["Care Management","CM03 Manage Population Health Outreach","Data Access and Accuracy",null,null,null,null,null,null,null,null,null,null,null,null,null,null,null,null,"Enterprise"]
["Care Management","CM03 Manage Population Health Outreach","Cost-Effectiveness",null,null,null,null,null,null,null,null,null,null,null,null,null,null,null,null,"Enterprise"]
["Care Management","CM03 Manage Population Health Outreach","Effort to Perform; Efficiency",null,null,null,null,null,null,null,null,null,null,null,null,null,null,null,null,"Enterprise"]
["Care Management","CM03 Manage Population Health Outreach","Accuracy of Process Results",null,null,null,null,null,null,null,null,null,null,null,null,null,null,null,null,"Enterprise"]
["Care Management","CM03 Manage Population Health Outreach","Utility or Value to Stakeholder",null,null,null,null,null,null,null,null,null,null,null,null,null,null,null,null,"Enterprise"]
["Care Management","CM04 Manage Registry","Timeliness of Process ",null,null,null,null,null,null,{"$f":"CONCATENATE(\"Level\",\" \",MIN(G47:G52))","v":"Level 0"},"Level 0",null,null,null,null,null,null,null,null,"Enterprise","HITECH"]
["Care Management","CM04 Manage Registry","Data Access and Accuracy",null,null,null,null,null,null,null,null,null,null,null,null,null,null,null,null,"Enterprise","HITECH"]
["Care Management","CM04 Manage Registry","Cost-Effectiveness",null,null,null,null,null,null,null,null,null,null,null,null,null,null,null,null,"Enterprise","HITECH"]
["Care Management","CM04 Manage Registry","Effort to Perform; Efficiency",null,null,null,null,null,null,null,null,null,null,null,null,null,null,null,null,"Enterprise","HITECH"]
["Care Management","CM04 Manage Registry","Accuracy of Process Results",null,null,null,null,null,null,null,null,null,null,null,null,null,null,null,null,"Enterprise","HITECH"]
["Care Management","CM04 Manage Registry","Utility or Value to Stakeholder",null,null,null,null,null,null,null,null,null,null,null,null,null,null,null,null,"Enterprise","HITECH"]
["Care Management","CM05 Perform Screening and Assessment","Timeliness of Process ",null,null,null,null,null,null,{"$f":"CONCATENATE(\"Level\",\" \",MIN(G53:G58))","v":"Level 0"},"Level 0",null,null,null,null,null,null,null,null,"Enterprise"]
["Care Management","CM05 Perform Screening and Assessment","Data Access and Accuracy",null,null,null,null,null,null,null,null,null,null,null,null,null,null,null,null,"Enterprise"]
["Care Management","CM05 Perform Screening and Assessment","Cost-Effectiveness",null,null,null,null,null,null,null,null,null,null,null,null,null,null,null,null,"Enterprise"]
["Care Management","CM05 Perform Screening and Assessment","Effort to Perform; Efficiency",null,null,null,null,null,null,null,null,null,null,null,null,null,null,null,null,"Enterprise"]
["Care Management","CM05 Perform Screening and Assessment","Accuracy of Process Results",null,null,null,null,null,null,null,null,null,null,null,null,null,null,null,null,"Enterprise"]
["Care Management","CM05 Perform Screening and Assessment","Utility or Value to Stakeholder",null,null,null,null,null,null,null,null,null,null,null,null,null,null,null,null,"Enterprise"]
["Care Management","CM06 Manage Treatment Plan and Outcomes","Timeliness of Process ",null,null,null,null,null,null,{"$f":"CONCATENATE(\"Level\",\" \",MIN(G59:G64))","v":"Level 0"},"Level 0",null,null,null,null,null,null,null,null,"Enterprise"]
["Care Management","CM06 Manage Treatment Plan and Outcomes","Data Access and Accuracy",null,null,null,null,null,null,null,null,null,null,null,null,null,null,null,null,"Enterprise"]
["Care Management","CM06 Manage Treatment Plan and Outcomes","Cost-Effectiveness",null,null,null,null,null,null,null,null,null,null,null,null,null,null,null,null,"Enterprise"]
["Care Management","CM06 Manage Treatment Plan and Outcomes","Effort to Perform; Efficiency",null,null,null,null,null,null,null,null,null,null,null,null,null,null,null,null,"Enterprise"]
["Care Management","CM06 Manage Treatment Plan and Outcomes","Accuracy of Process Results",null,null,null,null,null,null,null,null,null,null,null,null,null,null,null,null,"Enterprise"]
["Care Management","CM06 Manage Treatment Plan and Outcomes","Utility or Value to Stakeholder",null,null,null,null,null,null,null,null,null,null,null,null,null,null,null,null,"Enterprise"]
["Care Management","CM07 Authorize Referral","Timeliness of Process ",null,null,null,null,null,null,{"$f":"CONCATENATE(\"Level\",\" \",MIN(G65:G70))","v":"Level 0"},"Level 0",null,null,null,null,null,null,null,null,"Enterprise"]
["Care Management","CM07 Authorize Referral","Data Access and Accuracy",null,null,null,null,null,null,null,null,null,null,null,null,null,null,null,null,"Enterprise"]
["Care Management","CM07 Authorize Referral","Cost-Effectiveness",null,null,null,null,null,null,null,null,null,null,null,null,null,null,null,null,"Enterprise"]
["Care Management","CM07 Authorize Referral","Effort to Perform; Efficiency",null,null,null,null,null,null,null,null,null,null,null,null,null,null,null,null,"Enterprise"]
["Care Management","CM07 Authorize Referral","Accuracy of Process Results",null,null,null,null,null,null,null,null,null,null,null,null,null,null,null,null,"Enterprise"]
["Care Management","CM07 Authorize Referral","Utility or Value to Stakeholder",null,null,null,null,null,null,null,null,null,null,null,null,null,null,null,null,"Enterprise"]
["Care Management","CM08 Authorize Service","Timeliness of Process ",null,null,null,null,null,null,{"$f":"CONCATENATE(\"Level\",\" \",MIN(G71:G76))","v":"Level 0"},"Level 0",null,null,null,null,null,null,null,null,"Enterprise"]
["Care Management","CM08 Authorize Service","Data Access and Accuracy",null,null,null,null,null,null,null,null,null,null,null,null,null,null,null,null,"Enterprise"]
["Care Management","CM08 Authorize Service","Cost-Effectiveness",null,null,null,null,null,null,null,null,null,null,null,null,null,null,null,null,"Enterprise"]
["Care Management","CM08 Authorize Service","Effort to Perform; Efficiency",null,null,null,null,null,null,null,null,null,null,null,null,null,null,null,null,"Enterprise"]
["Care Management","CM08 Authorize Service","Accuracy of Process Results",null,null,null,null,null,null,null,null,null,null,null,null,null,null,null,null,"Enterprise"]
["Care Management","CM08 Authorize Service","Utility or Value to Stakeholder",null,null,null,null,null,null,null,null,null,null,null,null,null,null,null,null,"Enterprise"]
["Care Management","CM09 Authorize Treatment Plan","Timeliness of Process ",null,null,null,null,null,null,{"$f":"CONCATENATE(\"Level\",\" \",MIN(G77:G82))","v":"Level 0"},"Level 0",null,null,null,null,null,null,null,null,"Enterprise"]
["Care Management","CM09 Authorize Treatment Plan","Data Access and Accuracy",null,null,null,null,null,null,null,null,null,null,null,null,null,null,null,null,"Enterprise"]
["Care Management","CM09 Authorize Treatment Plan","Cost-Effectiveness",null,null,null,null,null,null,null,null,null,null,null,null,null,null,null,null,"Enterprise"]
["Care Management","CM09 Authorize Treatment Plan","Effort to Perform; Efficiency",null,null,null,null,null,null,null,null,null,null,null,null,null,null,null,null,"Enterprise"]
["Care Management","CM09 Authorize Treatment Plan","Accuracy of Process Results",null,null,null,null,null,null,null,null,null,null,null,null,null,null,null,null,"Enterprise"]
["Care Management","CM09 Authorize Treatment Plan","Utility or Value to Stakeholder",null,null,null,null,null,null,null,null,null,null,null,null,null,null,null,null,"Enterprise"]
["Contractor Management","CO01 Manage Contractor Information","Timeliness of Process ",null,null,null,null,null,null,{"$f":"CONCATENATE(\"Level\",\" \",MIN(G83:G88))","v":"Level 0"},"Level 0",null,null,null,null,null,null,null,null,"Enterprise"]
["Contractor Management","CO01 Manage Contractor Information","Data Access and Accuracy",null,null,null,null,null,null,null,null,null,null,null,null,null,null,null,null,"Enterprise"]
["Contractor Management","CO01 Manage Contractor Information","Cost-Effectiveness",null,null,null,null,null,null,null,null,null,null,null,null,null,null,null,null,"Enterprise"]
["Contractor Management","CO01 Manage Contractor Information","Effort to Perform; Efficiency",null,null,null,null,null,null,null,null,null,null,null,null,null,null,null,null,"Enterprise"]
["Contractor Management","CO01 Manage Contractor Information","Accuracy of Process Results",null,null,null,null,null,null,null,null,null,null,null,null,null,null,null,null,"Enterprise"]
["Contractor Management","CO01 Manage Contractor Information","Utility or Value to Stakeholder",null,null,null,null,null,null,null,null,null,null,null,null,null,null,null,null,"Enterprise"]
["Contractor Management","CO02 Manage Contractor Communication","Timeliness of Process ",null,null,null,null,null,null,{"$f":"CONCATENATE(\"Level\",\" \",MIN(G89:G94))","v":"Level 0"},"Level 0",null,null,null,null,null,null,null,null,"Enterprise"]
["Contractor Management","CO02 Manage Contractor Communication","Data Access and Accuracy",null,null,null,null,null,null,null,null,null,null,null,null,null,null,null,null,"Enterprise"]
["Contractor Management","CO02 Manage Contractor Communication","Cost-Effectiveness",null,null,null,null,null,null,null,null,null,null,null,null,null,null,null,null,"Enterprise"]
["Contractor Management","CO02 Manage Contractor Communication","Effort to Perform; Efficiency",null,null,null,null,null,null,null,null,null,null,null,null,null,null,null,null,"Enterprise"]
["Contractor Management","CO02 Manage Contractor Communication","Accuracy of Process Results",null,null,null,null,null,null,null,null,null,null,null,null,null,null,null,null,"Enterprise"]
["Contractor Management","CO02 Manage Contractor Communication","Utility or Value to Stakeholder",null,null,null,null,null,null,null,null,null,null,null,null,null,null,null,null,"Enterprise"]
["Contractor Management","CO03 Perform Contractor Outreach","Timeliness of Process ",null,null,null,null,null,null,{"$f":"CONCATENATE(\"Level\",\" \",MIN(G95:G100))","v":"Level 0"},"Level 0",null,null,null,null,null,null,null,null,"Enterprise"]
["Contractor Management","CO03 Perform Contractor Outreach","Data Access and Accuracy",null,null,null,null,null,null,null,null,null,null,null,null,null,null,null,null,"Enterprise"]
["Contractor Management","CO03 Perform Contractor Outreach","Cost-Effectiveness",null,null,null,null,null,null,null,null,null,null,null,null,null,null,null,null,"Enterprise"]
["Contractor Management","CO03 Perform Contractor Outreach","Effort to Perform; Efficiency",null,null,null,null,null,null,null,null,null,null,null,null,null,null,null,null,"Enterprise"]
["Contractor Management","CO03 Perform Contractor Outreach","Accuracy of Process Results",null,null,null,null,null,null,null,null,null,null,null,null,null,null,null,null,"Enterprise"]
["Contractor Management","CO03 Perform Contractor Outreach","Utility or Value to Stakeholder",null,null,null,null,null,null,null,null,null,null,null,null,null,null,null,null,"Enterprise"]
["Contractor Management","CO04 Inquire Contractor Information","Timeliness of Process ",null,null,null,null,null,null,{"$f":"CONCATENATE(\"Level\",\" \",MIN(G101:G106))","v":"Level 0"},"Level 0",null,null,null,null,null,null,null,null,"Enterprise"]
["Contractor Management","CO04 Inquire Contractor Information","Data Access and Accuracy",null,null,null,null,null,null,null,null,null,null,null,null,null,null,null,null,"Enterprise"]
["Contractor Management","CO04 Inquire Contractor Information","Cost-Effectiveness",null,null,null,null,null,null,null,null,null,null,null,null,null,null,null,null,"Enterprise"]
["Contractor Management","CO04 Inquire Contractor Information","Effort to Perform; Efficiency",null,null,null,null,null,null,null,null,null,null,null,null,null,null,null,null,"Enterprise"]
["Contractor Management","CO04 Inquire Contractor Information","Accuracy of Process Results",null,null,null,null,null,null,null,null,null,null,null,null,null,null,null,null,"Enterprise"]
["Contractor Management","CO04 Inquire Contractor Information","Utility or Value to Stakeholder",null,null,null,null,null,null,null,null,null,null,null,null,null,null,null,null,"Enterprise"]
["Contractor Management","CO05 Produce Solicitation","Timeliness of Process ",null,null,null,null,null,null,{"$f":"CONCATENATE(\"Level\",\" \",MIN(G107:G112))","v":"Level 0"},"Level 0",null,null,null,null,null,null,null,null,"Enterprise"]
["Contractor Management","CO05 Produce Solicitation","Data Access and Accuracy",null,null,null,null,null,null,null,null,null,null,null,null,null,null,null,null,"Enterprise"]
["Contractor Management","CO05 Produce Solicitation","Cost-Effectiveness",null,null,null,null,null,null,null,null,null,null,null,null,null,null,null,null,"Enterprise"]
["Contractor Management","CO05 Produce Solicitation","Effort to Perform; Efficiency",null,null,null,null,null,null,null,null,null,null,null,null,null,null,null,null,"Enterprise"]
["Contractor Management","CO05 Produce Solicitation","Accuracy of Process Results",null,null,null,null,null,null,null,null,null,null,null,null,null,null,null,null,"Enterprise"]
["Contractor Management","CO05 Produce Solicitation","Utility or Value to Stakeholder",null,null,null,null,null,null,null,null,null,null,null,null,null,null,null,null,"Enterprise"]
["Contractor Management","CO06 Award Contract","Timeliness of Process ",null,null,null,null,null,null,{"$f":"CONCATENATE(\"Level\",\" \",MIN(G113:G118))","v":"Level 0"},"Level 0",null,null,null,null,null,null,null,null,"Enterprise"]
["Contractor Management","CO06 Award Contract","Data Access and Accuracy",null,null,null,null,null,null,null,null,null,null,null,null,null,null,null,null,"Enterprise"]
["Contractor Management","CO06 Award Contract","Cost-Effectiveness",null,null,null,null,null,null,null,null,null,null,null,null,null,null,null,null,"Enterprise"]
["Contractor Management","CO06 Award Contract","Effort to Perform; Efficiency",null,null,null,null,null,null,null,null,null,null,null,null,null,null,null,null,"Enterprise"]
["Contractor Management","CO06 Award Contract","Accuracy of Process Results",null,null,null,null,null,null,null,null,null,null,null,null,null,null,null,null,"Enterprise"]
["Contractor Management","CO06 Award Contract","Utility or Value to Stakeholder",null,null,null,null,null,null,null,null,null,null,null,null,null,null,null,null,"Enterprise"]
["Contractor Management","CO07 Manage Contract","Timeliness of Process ",null,null,null,null,null,null,{"$f":"CONCATENATE(\"Level\",\" \",MIN(G119:G124))","v":"Level 0"},"Level 0",null,null,null,null,null,null,null,null,"Enterprise"]
["Contractor Management","CO07 Manage Contract","Data Access and Accuracy",null,null,null,null,null,null,null,null,null,null,null,null,null,null,null,null,"Enterprise"]
["Contractor Management","CO07 Manage Contract","Cost-Effectiveness",null,null,null,null,null,null,null,null,null,null,null,null,null,null,null,null,"Enterprise"]
["Contractor Management","CO07 Manage Contract","Effort to Perform; Efficiency",null,null,null,null,null,null,null,null,null,null,null,null,null,null,null,null,"Enterprise"]
["Contractor Management","CO07 Manage Contract","Accuracy of Process Results",null,null,null,null,null,null,null,null,null,null,null,null,null,null,null,null,"Enterprise"]
["Contractor Management","CO07 Manage Contract","Utility or Value to Stakeholder",null,null,null,null,null,null,null,null,null,null,null,null,null,null,null,null,"Enterprise"]
["Contractor Management","CO08 Close Out Contract","Timeliness of Process ",null,null,null,null,null,null,{"$f":"CONCATENATE(\"Level\",\" \",MIN(G125:G130))","v":"Level 0"},"Level 0",null,null,null,null,null,null,null,null,"Enterprise"]
["Contractor Management","CO08 Close Out Contract","Data Access and Accuracy",null,null,null,null,null,null,null,null,null,null,null,null,null,null,null,null,"Enterprise"]
["Contractor Management","CO08 Close Out Contract","Cost-Effectiveness",null,null,null,null,null,null,null,null,null,null,null,null,null,null,null,null,"Enterprise"]
["Contractor Management","CO08 Close Out Contract","Effort to Perform; Efficiency",null,null,null,null,null,null,null,null,null,null,null,null,null,null,null,null,"Enterprise"]
["Contractor Management","CO08 Close Out Contract","Accuracy of Process Results",null,null,null,null,null,null,null,null,null,null,null,null,null,null,null,null,"Enterprise"]
["Contractor Management","CO08 Close Out Contract","Utility or Value to Stakeholder",null,null,null,null,null,null,null,null,null,null,null,null,null,null,null,null,"Enterprise"]
["Contractor Management","CO09 Manage Contractor Grievance and Appeal","Timeliness of Process ",null,null,null,null,null,null,{"$f":"CONCATENATE(\"Level\",\" \",MIN(G131:G136))","v":"Level 0"},"Level 0",null,null,null,null,null,null,null,null,"Enterprise"]
["Contractor Management","CO09 Manage Contractor Grievance and Appeal","Data Access and Accuracy",null,null,null,null,null,null,null,null,null,null,null,null,null,null,null,null,"Enterprise"]
["Contractor Management","CO09 Manage Contractor Grievance and Appeal","Cost-Effectiveness",null,null,null,null,null,null,null,null,null,null,null,null,null,null,null,null,"Enterprise"]
["Contractor Management","CO09 Manage Contractor Grievance and Appeal","Effort to Perform; Efficiency",null,null,null,null,null,null,null,null,null,null,null,null,null,null,null,null,"Enterprise"]
["Contractor Management","CO09 Manage Contractor Grievance and Appeal","Accuracy of Process Results",null,null,null,null,null,null,null,null,null,null,null,null,null,null,null,null,"Enterprise"]
["Contractor Management","CO09 Manage Contractor Grievance and Appeal","Utility or Value to Stakeholder",null,null,null,null,null,null,null,null,null,null,null,null,null,null,null,null,"Enterprise"]
["Eligibility and Enrollment Management","EE01 Determine Member Eligibility (Under Development)","Timeliness of Process ",null,null,null,null,null,null,{"$f":"CONCATENATE(\"Level\",\" \",MIN(G137:G142))","v":"Level 0"},"Level 0",null,null,null,null,null,null,null,null,"Enterprise"]
["Eligibility and Enrollment Management","EE01 Determine Member Eligibility (Under Development)","Data Access and Accuracy",null,null,null,null,null,null,null,null,null,null,null,null,null,null,null,null,"Enterprise"]
["Eligibility and Enrollment Management","EE01 Determine Member Eligibility (Under Development)","Cost-Effectiveness",null,null,null,null,null,null,null,null,null,null,null,null,null,null,null,null,"Enterprise"]
["Eligibility and Enrollment Management","EE01 Determine Member Eligibility (Under Development)","Effort to Perform; Efficiency",null,null,null,null,null,null,null,null,null,null,null,null,null,null,null,null,"Enterprise"]
["Eligibility and Enrollment Management","EE01 Determine Member Eligibility (Under Development)","Accuracy of Process Results",null,null,null,null,null,null,null,null,null,null,null,null,null,null,null,null,"Enterprise"]
["Eligibility and Enrollment Management","EE01 Determine Member Eligibility (Under Development)","Utility or Value to Stakeholder",null,null,null,null,null,null,null,null,null,null,null,null,null,null,null,null,"Enterprise"]
["Eligibility and Enrollment Management","EE02 Enroll Member (Under Development)","Timeliness of Process ",null,null,null,null,null,null,{"$f":"CONCATENATE(\"Level\",\" \",MIN(G143:G148))","v":"Level 0"},"Level 0",null,null,null,null,null,null,null,null,"Enterprise"]
["Eligibility and Enrollment Management","EE02 Enroll Member (Under Development)","Data Access and Accuracy",null,null,null,null,null,null,null,null,null,null,null,null,null,null,null,null,"Enterprise"]
["Eligibility and Enrollment Management","EE02 Enroll Member (Under Development)","Cost-Effectiveness",null,null,null,null,null,null,null,null,null,null,null,null,null,null,null,null,"Enterprise"]
["Eligibility and Enrollment Management","EE02 Enroll Member (Under Development)","Effort to Perform; Efficiency",null,null,null,null,null,null,null,null,null,null,null,null,null,null,null,null,"Enterprise"]
["Eligibility and Enrollment Management","EE02 Enroll Member (Under Development)","Accuracy of Process Results",null,null,null,null,null,null,null,null,null,null,null,null,null,null,null,null,"Enterprise"]
["Eligibility and Enrollment Management","EE02 Enroll Member (Under Development)","Utility or Value to Stakeholder",null,null,null,null,null,null,null,null,null,null,null,null,null,null,null,null,"Enterprise"]
["Eligibility and Enrollment Management","EE03 Disenroll Member (Under Development)","Timeliness of Process ",null,null,null,null,null,null,{"$f":"CONCATENATE(\"Level\",\" \",MIN(G149:G154))","v":"Level 0"},"Level 0",null,null,null,null,null,null,null,null,"Enterprise"]
["Eligibility and Enrollment Management","EE03 Disenroll Member (Under Development)","Data Access and Accuracy",null,null,null,null,null,null,null,null,null,null,null,null,null,null,null,null,"Enterprise"]
["Eligibility and Enrollment Management","EE03 Disenroll Member (Under Development)","Cost-Effectiveness",null,null,null,null,null,null,null,null,null,null,null,null,null,null,null,null,"Enterprise"]
["Eligibility and Enrollment Management","EE03 Disenroll Member (Under Development)","Effort to Perform; Efficiency",null,null,null,null,null,null,null,null,null,null,null,null,null,null,null,null,"Enterprise"]
["Eligibility and Enrollment Management","EE03 Disenroll Member (Under Development)","Accuracy of Process Results",null,null,null,null,null,null,null,null,null,null,null,null,null,null,null,null,"Enterprise"]
["Eligibility and Enrollment Management","EE03 Disenroll Member (Under Development)","Utility or Value to Stakeholder",null,null,null,null,null,null,null,null,null,null,null,null,null,null,null,null,"Enterprise"]
["Eligibility and Enrollment Management","EE04 Inquire Member Eligibility (Under Development)","Timeliness of Process ",null,null,null,null,null,null,{"$f":"CONCATENATE(\"Level\",\" \",MIN(G155:G160))","v":"Level 0"},"Level 0",null,null,null,null,null,null,null,null,"Enterprise"]
["Eligibility and Enrollment Management","EE04 Inquire Member Eligibility (Under Development)","Data Access and Accuracy",null,null,null,null,null,null,null,null,null,null,null,null,null,null,null,null,"Enterprise"]
["Eligibility and Enrollment Management","EE04 Inquire Member Eligibility (Under Development)","Cost-Effectiveness",null,null,null,null,null,null,null,null,null,null,null,null,null,null,null,null,"Enterprise"]
["Eligibility and Enrollment Management","EE04 Inquire Member Eligibility (Under Development)","Effort to Perform; Efficiency",null,null,null,null,null,null,null,null,null,null,null,null,null,null,null,null,"Enterprise"]
["Eligibility and Enrollment Management","EE04 Inquire Member Eligibility (Under Development)","Accuracy of Process Results",null,null,null,null,null,null,null,null,null,null,null,null,null,null,null,null,"Enterprise"]
["Eligibility and Enrollment Management","EE04 Inquire Member Eligibility (Under Development)","Utility or Value to Stakeholder",null,null,null,null,null,null,null,null,null,null,null,null,null,null,null,null,"Enterprise"]
["Eligibility and Enrollment Management","EE05 Determine Provider Eligibility","Timeliness of Process ",null,null,null,null,null,null,{"$f":"CONCATENATE(\"Level\",\" \",MIN(G161:G166))","v":"Level 0"},"Level 0",null,null,null,null,null,null,null,null,"Enterprise"]
["Eligibility and Enrollment Management","EE05 Determine Provider Eligibility","Data Access and Accuracy",null,null,null,null,null,null,null,null,null,null,null,null,null,null,null,null,"Enterprise"]
["Eligibility and Enrollment Management","EE05 Determine Provider Eligibility","Cost-Effectiveness",null,null,null,null,null,null,null,null,null,null,null,null,null,null,null,null,"Enterprise"]
["Eligibility and Enrollment Management","EE05 Determine Provider Eligibility","Effort to Perform; Efficiency",null,null,null,null,null,null,null,null,null,null,null,null,null,null,null,null,"Enterprise"]
["Eligibility and Enrollment Management","EE05 Determine Provider Eligibility","Accuracy of Process Results",null,null,null,null,null,null,null,null,null,null,null,null,null,null,null,null,"Enterprise"]
["Eligibility and Enrollment Management","EE05 Determine Provider Eligibility","Utility or Value to Stakeholder",null,null,null,null,null,null,null,null,null,null,null,null,null,null,null,null,"Enterprise"]
["Eligibility and Enrollment Management","EE06 Enroll Provider","Timeliness of Process ",null,null,null,null,null,null,{"$f":"CONCATENATE(\"Level\",\" \",MIN(G167:G172))","v":"Level 0"},"Level 0",null,null,null,null,null,null,null,null,"Enterprise","HITECH"]
["Eligibility and Enrollment Management","EE06 Enroll Provider","Data Access and Accuracy",null,null,null,null,null,null,null,null,null,null,null,null,null,null,null,null,"Enterprise","HITECH"]
["Eligibility and Enrollment Management","EE06 Enroll Provider","Cost-Effectiveness",null,null,null,null,null,null,null,null,null,null,null,null,null,null,null,null,"Enterprise","HITECH"]
["Eligibility and Enrollment Management","EE06 Enroll Provider","Effort to Perform; Efficiency",null,null,null,null,null,null,null,null,null,null,null,null,null,null,null,null,"Enterprise","HITECH"]
["Eligibility and Enrollment Management","EE06 Enroll Provider","Accuracy of Process Results",null,null,null,null,null,null,null,null,null,null,null,null,null,null,null,null,"Enterprise","HITECH"]
["Eligibility and Enrollment Management","EE06 Enroll Provider","Utility or Value to Stakeholder",null,null,null,null,null,null,null,null,null,null,null,null,null,null,null,null,"Enterprise","HITECH"]
["Eligibility and Enrollment Management","EE07 Disenroll Provider","Timeliness of Process ",null,null,null,null,null,null,{"$f":"CONCATENATE(\"Level\",\" \",MIN(G173:G178))","v":"Level 0"},"Level 0",null,null,null,null,null,null,null,null,"Enterprise"]
["Eligibility and Enrollment Management","EE07 Disenroll Provider","Data Access and Accuracy",null,null,null,null,null,null,null,null,null,null,null,null,null,null,null,null,"Enterprise"]
["Eligibility and Enrollment Management","EE07 Disenroll Provider","Cost-Effectiveness",null,null,null,null,null,null,null,null,null,null,null,null,null,null,null,null,"Enterprise"]
["Eligibility and Enrollment Management","EE07 Disenroll Provider","Effort to Perform; Efficiency",null,null,null,null,null,null,null,null,null,null,null,null,null,null,null,null,"Enterprise"]
["Eligibility and Enrollment Management","EE07 Disenroll Provider","Accuracy of Process Results",null,null,null,null,null,null,null,null,null,null,null,null,null,null,null,null,"Enterprise"]
["Eligibility and Enrollment Management","EE07 Disenroll Provider","Utility or Value to Stakeholder",null,null,null,null,null,null,null,null,null,null,null,null,null,null,null,null,"Enterprise"]
["Eligibility and Enrollment Management","EE08 Inquire Provider Information","Timeliness of Process ",null,null,null,null,null,null,{"$f":"CONCATENATE(\"Level\",\" \",MIN(G179:G184))","v":"Level 0"},"Level 0",null,null,null,null,null,null,null,null,"Enterprise"]
["Eligibility and Enrollment Management","EE08 Inquire Provider Information","Data Access and Accuracy",null,null,null,null,null,null,null,null,null,null,null,null,null,null,null,null,"Enterprise"]
["Eligibility and Enrollment Management","EE08 Inquire Provider Information","Cost-Effectiveness",null,null,null,null,null,null,null,null,null,null,null,null,null,null,null,null,"Enterprise"]
["Eligibility and Enrollment Management","EE08 Inquire Provider Information","Effort to Perform; Efficiency",null,null,null,null,null,null,null,null,null,null,null,null,null,null,null,null,"Enterprise"]
["Eligibility and Enrollment Management","EE08 Inquire Provider Information","Accuracy of Process Results",null,null,null,null,null,null,null,null,null,null,null,null,null,null,null,null,"Enterprise"]
["Eligibility and Enrollment Management","EE08 Inquire Provider Information","Utility or Value to Stakeholder",null,null,null,null,null,null,null,null,null,null,null,null,null,null,null,null,"Enterprise"]
["Financial Management","FM01 Manage Provider Recoupment","Timeliness of Process ",null,null,null,null,null,null,{"$f":"CONCATENATE(\"Level\",\" \",MIN(G185:G190))","v":"Level 0"},"Level 0",null,null,null,null,null,null,null,null,"Enterprise"]
["Financial Management","FM01 Manage Provider Recoupment","Data Access and Accuracy",null,null,null,null,null,null,null,null,null,null,null,null,null,null,null,null,"Enterprise"]
["Financial Management","FM01 Manage Provider Recoupment","Cost-Effectiveness",null,null,null,null,null,null,null,null,null,null,null,null,null,null,null,null,"Enterprise"]
["Financial Management","FM01 Manage Provider Recoupment","Effort to Perform; Efficiency",null,null,null,null,null,null,null,null,null,null,null,null,null,null,null,null,"Enterprise"]
["Financial Management","FM01 Manage Provider Recoupment","Accuracy of Process Results",null,null,null,null,null,null,null,null,null,null,null,null,null,null,null,null,"Enterprise"]
["Financial Management","FM01 Manage Provider Recoupment","Utility or Value to Stakeholder",null,null,null,null,null,null,null,null,null,null,null,null,null,null,null,null,"Enterprise"]
["Financial Management","FM02 Manage TPL Recovery","Timeliness of Process ",null,null,null,null,null,null,{"$f":"CONCATENATE(\"Level\",\" \",MIN(G191:G196))","v":"Level 0"},"Level 0",null,null,null,null,null,null,null,null,"Enterprise"]
["Financial Management","FM02 Manage TPL Recovery","Data Access and Accuracy",null,null,null,null,null,null,null,null,null,null,null,null,null,null,null,null,"Enterprise"]
["Financial Management","FM02 Manage TPL Recovery","Cost-Effectiveness",null,null,null,null,null,null,null,null,null,null,null,null,null,null,null,null,"Enterprise"]
["Financial Management","FM02 Manage TPL Recovery","Effort to Perform; Efficiency",null,null,null,null,null,null,null,null,null,null,null,null,null,null,null,null,"Enterprise"]
["Financial Management","FM02 Manage TPL Recovery","Accuracy of Process Results",null,null,null,null,null,null,null,null,null,null,null,null,null,null,null,null,"Enterprise"]
["Financial Management","FM02 Manage TPL Recovery","Utility or Value to Stakeholder",null,null,null,null,null,null,null,null,null,null,null,null,null,null,null,null,"Enterprise"]
["Financial Management","FM03 Manage Estate Recovery","Timeliness of Process ",null,null,null,null,null,null,{"$f":"CONCATENATE(\"Level\",\" \",MIN(G197:G202))","v":"Level 0"},"Level 0",null,null,null,null,null,null,null,null,"Enterprise"]
["Financial Management","FM03 Manage Estate Recovery","Data Access and Accuracy",null,null,null,null,null,null,null,null,null,null,null,null,null,null,null,null,"Enterprise"]
["Financial Management","FM03 Manage Estate Recovery","Cost-Effectiveness",null,null,null,null,null,null,null,null,null,null,null,null,null,null,null,null,"Enterprise"]
["Financial Management","FM03 Manage Estate Recovery","Effort to Perform; Efficiency",null,null,null,null,null,null,null,null,null,null,null,null,null,null,null,null,"Enterprise"]
["Financial Management","FM03 Manage Estate Recovery","Accuracy of Process Results",null,null,null,null,null,null,null,null,null,null,null,null,null,null,null,null,"Enterprise"]
["Financial Management","FM03 Manage Estate Recovery","Utility or Value to Stakeholder",null,null,null,null,null,null,null,null,null,null,null,null,null,null,null,null,"Enterprise"]
["Financial Management","FM04 Manage Drug Rebate","Timeliness of Process ",null,null,null,null,null,null,{"$f":"CONCATENATE(\"Level\",\" \",MIN(G203:G208))","v":"Level 0"},"Level 0",null,null,null,null,null,null,null,null,"Enterprise"]
["Financial Management","FM04 Manage Drug Rebate","Data Access and Accuracy",null,null,null,null,null,null,null,null,null,null,null,null,null,null,null,null,"Enterprise"]
["Financial Management","FM04 Manage Drug Rebate","Cost-Effectiveness",null,null,null,null,null,null,null,null,null,null,null,null,null,null,null,null,"Enterprise"]
["Financial Management","FM04 Manage Drug Rebate","Effort to Perform; Efficiency",null,null,null,null,null,null,null,null,null,null,null,null,null,null,null,null,"Enterprise"]
["Financial Management","FM04 Manage Drug Rebate","Accuracy of Process Results",null,null,null,null,null,null,null,null,null,null,null,null,null,null,null,null,"Enterprise"]
["Financial Management","FM04 Manage Drug Rebate","Utility or Value to Stakeholder",null,null,null,null,null,null,null,null,null,null,null,null,null,null,null,null,"Enterprise"]
["Financial Management","FM05 Manage Cost Settlement","Timeliness of Process ",null,null,null,null,null,null,{"$f":"CONCATENATE(\"Level\",\" \",MIN(G209:G214))","v":"Level 0"},"Level 0",null,null,null,null,null,null,null,null,"Enterprise"]
["Financial Management","FM05 Manage Cost Settlement","Data Access and Accuracy",null,null,null,null,null,null,null,null,null,null,null,null,null,null,null,null,"Enterprise"]
["Financial Management","FM05 Manage Cost Settlement","Cost-Effectiveness",null,null,null,null,null,null,null,null,null,null,null,null,null,null,null,null,"Enterprise"]
["Financial Management","FM05 Manage Cost Settlement","Effort to Perform; Efficiency",null,null,null,null,null,null,null,null,null,null,null,null,null,null,null,null,"Enterprise"]
["Financial Management","FM05 Manage Cost Settlement","Accuracy of Process Results",null,null,null,null,null,null,null,null,null,null,null,null,null,null,null,null,"Enterprise"]
["Financial Management","FM05 Manage Cost Settlement","Utility or Value to Stakeholder",null,null,null,null,null,null,null,null,null,null,null,null,null,null,null,null,"Enterprise"]
["Financial Management","FM06 Manage Accounts Receivable Information","Timeliness of Process ",null,null,null,null,null,null,{"$f":"CONCATENATE(\"Level\",\" \",MIN(G215:G220))","v":"Level 0"},"Level 0",null,null,null,null,null,null,null,null,"Enterprise"]
["Financial Management","FM06 Manage Accounts Receivable Information","Data Access and Accuracy",null,null,null,null,null,null,null,null,null,null,null,null,null,null,null,null,"Enterprise"]
["Financial Management","FM06 Manage Accounts Receivable Information","Cost-Effectiveness",null,null,null,null,null,null,null,null,null,null,null,null,null,null,null,null,"Enterprise"]
["Financial Management","FM06 Manage Accounts Receivable Information","Effort to Perform; Efficiency",null,null,null,null,null,null,null,null,null,null,null,null,null,null,null,null,"Enterprise"]
["Financial Management","FM06 Manage Accounts Receivable Information","Accuracy of Process Results",null,null,null,null,null,null,null,null,null,null,null,null,null,null,null,null,"Enterprise"]
["Financial Management","FM06 Manage Accounts Receivable Information","Utility or Value to Stakeholder",null,null,null,null,null,null,null,null,null,null,null,null,null,null,null,null,"Enterprise"]
["Financial Management","FM07 Manage Accounts Receivable Funds","Timeliness of Process ",null,null,null,null,null,null,{"$f":"CONCATENATE(\"Level\",\" \",MIN(G221:G226))","v":"Level 0"},"Level 0",null,null,null,null,null,null,null,null,"Enterprise"]
["Financial Management","FM07 Manage Accounts Receivable Funds","Data Access and Accuracy",null,null,null,null,null,null,null,null,null,null,null,null,null,null,null,null,"Enterprise"]
["Financial Management","FM07 Manage Accounts Receivable Funds","Cost-Effectiveness",null,null,null,null,null,null,null,null,null,null,null,null,null,null,null,null,"Enterprise"]
["Financial Management","FM07 Manage Accounts Receivable Funds","Effort to Perform; Efficiency",null,null,null,null,null,null,null,null,null,null,null,null,null,null,null,null,"Enterprise"]
["Financial Management","FM07 Manage Accounts Receivable Funds","Accuracy of Process Results",null,null,null,null,null,null,null,null,null,null,null,null,null,null,null,null,"Enterprise"]
["Financial Management","FM07 Manage Accounts Receivable Funds","Utility or Value to Stakeholder",null,null,null,null,null,null,null,null,null,null,null,null,null,null,null,null,"Enterprise"]
["Financial Management","FM08 Prepare Member Premium Invoice","Timeliness of Process ",null,null,null,null,null,null,{"$f":"CONCATENATE(\"Level\",\" \",MIN(G227:G232))","v":"Level 0"},"Level 0",null,null,null,null,null,null,null,null,"Enterprise"]
["Financial Management","FM08 Prepare Member Premium Invoice","Data Access and Accuracy",null,null,null,null,null,null,null,null,null,null,null,null,null,null,null,null,"Enterprise"]
["Financial Management","FM08 Prepare Member Premium Invoice","Cost-Effectiveness",null,null,null,null,null,null,null,null,null,null,null,null,null,null,null,null,"Enterprise"]
["Financial Management","FM08 Prepare Member Premium Invoice","Effort to Perform; Efficiency",null,null,null,null,null,null,null,null,null,null,null,null,null,null,null,null,"Enterprise"]
["Financial Management","FM08 Prepare Member Premium Invoice","Accuracy of Process Results",null,null,null,null,null,null,null,null,null,null,null,null,null,null,null,null,"Enterprise"]
["Financial Management","FM08 Prepare Member Premium Invoice","Utility or Value to Stakeholder",null,null,null,null,null,null,null,null,null,null,null,null,null,null,null,null,"Enterprise"]
["Financial Management","FM09 Manage Contractor Payment","Timeliness of Process ",null,null,null,null,null,null,{"$f":"CONCATENATE(\"Level\",\" \",MIN(G233:G238))","v":"Level 0"},"Level 0",null,null,null,null,null,null,null,null,"Enterprise"]
["Financial Management","FM09 Manage Contractor Payment","Data Access and Accuracy",null,null,null,null,null,null,null,null,null,null,null,null,null,null,null,null,"Enterprise"]
["Financial Management","FM09 Manage Contractor Payment","Cost-Effectiveness",null,null,null,null,null,null,null,null,null,null,null,null,null,null,null,null,"Enterprise"]
["Financial Management","FM09 Manage Contractor Payment","Effort to Perform; Efficiency",null,null,null,null,null,null,null,null,null,null,null,null,null,null,null,null,"Enterprise"]
["Financial Management","FM09 Manage Contractor Payment","Accuracy of Process Results",null,null,null,null,null,null,null,null,null,null,null,null,null,null,null,null,"Enterprise"]
["Financial Management","FM09 Manage Contractor Payment","Utility or Value to Stakeholder",null,null,null,null,null,null,null,null,null,null,null,null,null,null,null,null,"Enterprise"]
["Financial Management","FM10 Manage Member Financial Participation","Timeliness of Process ",null,null,null,null,null,null,{"$f":"CONCATENATE(\"Level\",\" \",MIN(G239:G244))","v":"Level 0"},"Level 0",null,null,null,null,null,null,null,null,"Enterprise"]
["Financial Management","FM10 Manage Member Financial Participation","Data Access and Accuracy",null,null,null,null,null,null,null,null,null,null,null,null,null,null,null,null,"Enterprise"]
["Financial Management","FM10 Manage Member Financial Participation","Cost-Effectiveness",null,null,null,null,null,null,null,null,null,null,null,null,null,null,null,null,"Enterprise"]
["Financial Management","FM10 Manage Member Financial Participation","Effort to Perform; Efficiency",null,null,null,null,null,null,null,null,null,null,null,null,null,null,null,null,"Enterprise"]
["Financial Management","FM10 Manage Member Financial Participation","Accuracy of Process Results",null,null,null,null,null,null,null,null,null,null,null,null,null,null,null,null,"Enterprise"]
["Financial Management","FM10 Manage Member Financial Participation","Utility or Value to Stakeholder",null,null,null,null,null,null,null,null,null,null,null,null,null,null,null,null,"Enterprise"]
["Financial Management","FM11 Manage Capitation Payment","Timeliness of Process ",null,null,null,null,null,null,{"$f":"CONCATENATE(\"Level\",\" \",MIN(G245:G250))","v":"Level 0"},"Level 0",null,null,null,null,null,null,null,null,"Enterprise"]
["Financial Management","FM11 Manage Capitation Payment","Data Access and Accuracy",null,null,null,null,null,null,null,null,null,null,null,null,null,null,null,null,"Enterprise"]
["Financial Management","FM11 Manage Capitation Payment","Cost-Effectiveness",null,null,null,null,null,null,null,null,null,null,null,null,null,null,null,null,"Enterprise"]
["Financial Management","FM11 Manage Capitation Payment","Effort to Perform; Efficiency",null,null,null,null,null,null,null,null,null,null,null,null,null,null,null,null,"Enterprise"]
["Financial Management","FM11 Manage Capitation Payment","Accuracy of Process Results",null,null,null,null,null,null,null,null,null,null,null,null,null,null,null,null,"Enterprise"]
["Financial Management","FM11 Manage Capitation Payment","Utility or Value to Stakeholder",null,null,null,null,null,null,null,null,null,null,null,null,null,null,null,null,"Enterprise"]
["Financial Management","FM12 Manage Incentive Payment","Timeliness of Process ",null,null,null,null,null,null,{"$f":"CONCATENATE(\"Level\",\" \",MIN(G251:G256))","v":"Level 0"},"Level 0",null,null,null,null,null,null,null,null,"Enterprise","HITECH"]
["Financial Management","FM12 Manage Incentive Payment","Data Access and Accuracy",null,null,null,null,null,null,null,null,null,null,null,null,null,null,null,null,"Enterprise","HITECH"]
["Financial Management","FM12 Manage Incentive Payment","Cost-Effectiveness",null,null,null,null,null,null,null,null,null,null,null,null,null,null,null,null,"Enterprise","HITECH"]
["Financial Management","FM12 Manage Incentive Payment","Effort to Perform; Efficiency",null,null,null,null,null,null,null,null,null,null,null,null,null,null,null,null,"Enterprise","HITECH"]
["Financial Management","FM12 Manage Incentive Payment","Accuracy of Process Results",null,null,null,null,null,null,null,null,null,null,null,null,null,null,null,null,"Enterprise","HITECH"]
["Financial Management","FM12 Manage Incentive Payment","Utility or Value to Stakeholder",null,null,null,null,null,null,null,null,null,null,null,null,null,null,null,null,"Enterprise","HITECH"]
["Financial Management","FM13 Manage Accounts Payable Information","Timeliness of Process ",null,null,null,null,null,null,{"$f":"CONCATENATE(\"Level\",\" \",MIN(G257:G262))","v":"Level 0"},"Level 0",null,null,null,null,null,null,null,null,"Enterprise"]
["Financial Management","FM13 Manage Accounts Payable Information","Data Access and Accuracy",null,null,null,null,null,null,null,null,null,null,null,null,null,null,null,null,"Enterprise"]
["Financial Management","FM13 Manage Accounts Payable Information","Cost-Effectiveness",null,null,null,null,null,null,null,null,null,null,null,null,null,null,null,null,"Enterprise"]
["Financial Management","FM13 Manage Accounts Payable Information","Effort to Perform; Efficiency",null,null,null,null,null,null,null,null,null,null,null,null,null,null,null,null,"Enterprise"]
["Financial Management","FM13 Manage Accounts Payable Information","Accuracy of Process Results",null,null,null,null,null,null,null,null,null,null,null,null,null,null,null,null,"Enterprise"]
["Financial Management","FM13 Manage Accounts Payable Information","Utility or Value to Stakeholder",null,null,null,null,null,null,null,null,null,null,null,null,null,null,null,null,"Enterprise"]
["Financial Management","FM14 Manage Accounts Payable Disbursement","Timeliness of Process ",null,null,null,null,null,null,{"$f":"CONCATENATE(\"Level\",\" \",MIN(G263:G268))","v":"Level 0"},"Level 0",null,null,null,null,null,null,null,null,"Enterprise"]
["Financial Management","FM14 Manage Accounts Payable Disbursement","Data Access and Accuracy",null,null,null,null,null,null,null,null,null,null,null,null,null,null,null,null,"Enterprise"]
["Financial Management","FM14 Manage Accounts Payable Disbursement","Cost-Effectiveness",null,null,null,null,null,null,null,null,null,null,null,null,null,null,null,null,"Enterprise"]
["Financial Management","FM14 Manage Accounts Payable Disbursement","Effort to Perform; Efficiency",null,null,null,null,null,null,null,null,null,null,null,null,null,null,null,null,"Enterprise"]
["Financial Management","FM14 Manage Accounts Payable Disbursement","Accuracy of Process Results",null,null,null,null,null,null,null,null,null,null,null,null,null,null,null,null,"Enterprise"]
["Financial Management","FM14 Manage Accounts Payable Disbursement","Utility or Value to Stakeholder",null,null,null,null,null,null,null,null,null,null,null,null,null,null,null,null,"Enterprise"]
["Financial Management","FM15 Manage 1099","Timeliness of Process ",null,null,null,null,null,null,{"$f":"CONCATENATE(\"Level\",\" \",MIN(G269:G274))","v":"Level 0"},"Level 0",null,null,null,null,null,null,null,null,"Enterprise"]
["Financial Management","FM15 Manage 1099","Data Access and Accuracy",null,null,null,null,null,null,null,null,null,null,null,null,null,null,null,null,"Enterprise"]
["Financial Management","FM15 Manage 1099","Cost-Effectiveness",null,null,null,null,null,null,null,null,null,null,null,null,null,null,null,null,"Enterprise"]
["Financial Management","FM15 Manage 1099","Effort to Perform; Efficiency",null,null,null,null,null,null,null,null,null,null,null,null,null,null,null,null,"Enterprise"]
["Financial Management","FM15 Manage 1099","Accuracy of Process Results",null,null,null,null,null,null,null,null,null,null,null,null,null,null,null,null,"Enterprise"]
["Financial Management","FM15 Manage 1099","Utility or Value to Stakeholder",null,null,null,null,null,null,null,null,null,null,null,null,null,null,null,null,"Enterprise"]
["Financial Management","FM16 Formulate Budget","Timeliness of Process ",null,null,null,null,null,null,{"$f":"CONCATENATE(\"Level\",\" \",MIN(G275:G280))","v":"Level 0"},"Level 0",null,null,null,null,null,null,null,null,"Enterprise"]
["Financial Management","FM16 Formulate Budget","Data Access and Accuracy",null,null,null,null,null,null,null,null,null,null,null,null,null,null,null,null,"Enterprise"]
["Financial Management","FM16 Formulate Budget","Cost-Effectiveness",null,null,null,null,null,null,null,null,null,null,null,null,null,null,null,null,"Enterprise"]
["Financial Management","FM16 Formulate Budget","Effort to Perform; Efficiency",null,null,null,null,null,null,null,null,null,null,null,null,null,null,null,null,"Enterprise"]
["Financial Management","FM16 Formulate Budget","Accuracy of Process Results",null,null,null,null,null,null,null,null,null,null,null,null,null,null,null,null,"Enterprise"]
["Financial Management","FM16 Formulate Budget","Utility or Value to Stakeholder",null,null,null,null,null,null,null,null,null,null,null,null,null,null,null,null,"Enterprise"]
["Financial Management","FM17 Manage Budget Information","Timeliness of Process ",null,null,null,null,null,null,{"$f":"CONCATENATE(\"Level\",\" \",MIN(G281:G286))","v":"Level 0"},"Level 0",null,null,null,null,null,null,null,null,"Enterprise"]
["Financial Management","FM17 Manage Budget Information","Data Access and Accuracy",null,null,null,null,null,null,null,null,null,null,null,null,null,null,null,null,"Enterprise"]
["Financial Management","FM17 Manage Budget Information","Cost-Effectiveness",null,null,null,null,null,null,null,null,null,null,null,null,null,null,null,null,"Enterprise"]
["Financial Management","FM17 Manage Budget Information","Effort to Perform; Efficiency",null,null,null,null,null,null,null,null,null,null,null,null,null,null,null,null,"Enterprise"]
["Financial Management","FM17 Manage Budget Information","Accuracy of Process Results",null,null,null,null,null,null,null,null,null,null,null,null,null,null,null,null,"Enterprise"]
["Financial Management","FM17 Manage Budget Information","Utility or Value to Stakeholder",null,null,null,null,null,null,null,null,null,null,null,null,null,null,null,null,"Enterprise"]
["Financial Management","FM18 Manage Fund","Timeliness of Process ",null,null,null,null,null,null,{"$f":"CONCATENATE(\"Level\",\" \",MIN(G287:G292))","v":"Level 0"},"Level 0",null,null,null,null,null,null,null,null,"Enterprise","HITECH"]
["Financial Management","FM18 Manage Fund","Data Access and Accuracy",null,null,null,null,null,null,null,null,null,null,null,null,null,null,null,null,"Enterprise","HITECH"]
["Financial Management","FM18 Manage Fund","Cost-Effectiveness",null,null,null,null,null,null,null,null,null,null,null,null,null,null,null,null,"Enterprise","HITECH"]
["Financial Management","FM18 Manage Fund","Effort to Perform; Efficiency",null,null,null,null,null,null,null,null,null,null,null,null,null,null,null,null,"Enterprise","HITECH"]
["Financial Management","FM18 Manage Fund","Accuracy of Process Results",null,null,null,null,null,null,null,null,null,null,null,null,null,null,null,null,"Enterprise","HITECH"]
["Financial Management","FM18 Manage Fund","Utility or Value to Stakeholder",null,null,null,null,null,null,null,null,null,null,null,null,null,null,null,null,"Enterprise","HITECH"]
["Financial Management","FM19 Generate Financial Report","Timeliness of Process ",null,null,null,null,null,null,{"$f":"CONCATENATE(\"Level\",\" \",MIN(G293:G298))","v":"Level 0"},"Level 0",null,null,null,null,null,null,null,null,"Enterprise","HITECH"]
["Financial Management","FM19 Generate Financial Report","Data Access and Accuracy",null,null,null,null,null,null,null,null,null,null,null,null,null,null,null,null,"Enterprise","HITECH"]
["Financial Management","FM19 Generate Financial Report","Cost-Effectiveness",null,null,null,null,null,null,null,null,null,null,null,null,null,null,null,null,"Enterprise","HITECH"]
["Financial Management","FM19 Generate Financial Report","Effort to Perform; Efficiency",null,null,null,null,null,null,null,null,null,null,null,null,null,null,null,null,"Enterprise","HITECH"]
["Financial Management","FM19 Generate Financial Report","Accuracy of Process Results",null,null,null,null,null,null,null,null,null,null,null,null,null,null,null,null,"Enterprise","HITECH"]
["Financial Management","FM19 Generate Financial Report","Utility or Value to Stakeholder",null,null,null,null,null,null,null,null,null,null,null,null,null,null,null,null,"Enterprise","HITECH"]
["Member Management","ME01 Manage Member Information (Under Development)","Timeliness of Process ",null,null,null,null,null,null,{"$f":"CONCATENATE(\"Level\",\" \",MIN(G299:G304))","v":"Level 0"},{"$f":"CONCATENATE(\"Level\",\" \",MIN(H299:H304))","v":"Level 0"},null,null,null,null,null,null,null,null,"Enterprise","HITECH"]
["Member Management","ME01 Manage Member Information (Under Development)","Data Access and Accuracy",null,null,null,null,null,null,null,null,null,null,null,null,null,null,null,null,"Enterprise","HITECH"]
["Member Management","ME01 Manage Member Information (Under Development)","Cost-Effectiveness",null,null,null,null,null,null,null,null,null,null,null,null,null,null,null,null,"Enterprise","HITECH"]
["Member Management","ME01 Manage Member Information (Under Development)","Effort to Perform; Efficiency",null,null,null,null,null,null,null,null,null,null,null,null,null,null,null,null,"Enterprise","HITECH"]
["Member Management","ME01 Manage Member Information (Under Development)","Accuracy of Process Results",null,null,null,null,null,null,null,null,null,null,null,null,null,null,null,null,"Enterprise","HITECH"]
["Member Management","ME01 Manage Member Information (Under Development)","Utility or Value to Stakeholder",null,null,null,null,null,null,null,null,null,null,null,null,null,null,null,null,"Enterprise","HITECH"]
["Member Management","ME02 Manage Applicant and Member Communication (Under Development)","Timeliness of Process ",null,null,null,null,null,null,{"$f":"CONCATENATE(\"Level\",\" \",MIN(G305:G310))","v":"Level 0"},{"$f":"CONCATENATE(\"Level\",\" \",MIN(H305:H310))","v":"Level 0"},null,null,null,null,null,null,null,null,"Enterprise","HITECH"]
["Member Management","ME02 Manage Applicant and Member Communication (Under Development)","Data Access and Accuracy",null,null,null,null,null,null,null,null,null,null,null,null,null,null,null,null,"Enterprise","HITECH"]
["Member Management","ME02 Manage Applicant and Member Communication (Under Development)","Cost-Effectiveness",null,null,null,null,null,null,null,null,null,null,null,null,null,null,null,null,"Enterprise","HITECH"]
["Member Management","ME02 Manage Applicant and Member Communication (Under Development)","Effort to Perform; Efficiency",null,null,null,null,null,null,null,null,null,null,null,null,null,null,null,null,"Enterprise","HITECH"]
["Member Management","ME02 Manage Applicant and Member Communication (Under Development)","Accuracy of Process Results",null,null,null,null,null,null,null,null,null,null,null,null,null,null,null,null,"Enterprise","HITECH"]
["Member Management","ME02 Manage Applicant and Member Communication (Under Development)","Utility or Value to Stakeholder",null,null,null,null,null,null,null,null,null,null,null,null,null,null,null,null,"Enterprise","HITECH"]
["Member Management","ME03 Perform Population and Member Outreach (Under Development)","Timeliness of Process ",null,null,null,null,null,null,{"$f":"CONCATENATE(\"Level\",\" \",MIN(G311:G316))","v":"Level 0"},{"$f":"CONCATENATE(\"Level\",\" \",MIN(H311:H316))","v":"Level 0"},null,null,null,null,null,null,null,null,"Enterprise"]
["Member Management","ME03 Perform Population and Member Outreach (Under Development)","Data Access and Accuracy",null,null,null,null,null,null,null,null,null,null,null,null,null,null,null,null,"Enterprise"]
["Member Management","ME03 Perform Population and Member Outreach (Under Development)","Cost-Effectiveness",null,null,null,null,null,null,null,null,null,null,null,null,null,null,null,null,"Enterprise"]
["Member Management","ME03 Perform Population and Member Outreach (Under Development)","Effort to Perform; Efficiency",null,null,null,null,null,null,null,null,null,null,null,null,null,null,null,null,"Enterprise"]
["Member Management","ME03 Perform Population and Member Outreach (Under Development)","Accuracy of Process Results",null,null,null,null,null,null,null,null,null,null,null,null,null,null,null,null,"Enterprise"]
["Member Management","ME03 Perform Population and Member Outreach (Under Development)","Utility or Value to Stakeholder",null,null,null,null,null,null,null,null,null,null,null,null,null,null,null,null,"Enterprise"]
["Member Management","ME08 Manage Member Grievance and Appeal (Under Development)","Timeliness of Process ",null,null,null,null,null,null,{"$f":"CONCATENATE(\"Level\",\" \",MIN(G317:G322))","v":"Level 0"},{"$f":"CONCATENATE(\"Level\",\" \",MIN(H317:H322))","v":"Level 0"},null,null,null,null,null,null,null,null,"Enterprise"]
["Member Management","ME08 Manage Member Grievance and Appeal (Under Development)","Data Access and Accuracy",null,null,null,null,null,null,null,null,null,null,null,null,null,null,null,null,"Enterprise"]
["Member Management","ME08 Manage Member Grievance and Appeal (Under Development)","Cost-Effectiveness",null,null,null,null,null,null,null,null,null,null,null,null,null,null,null,null,"Enterprise"]
["Member Management","ME08 Manage Member Grievance and Appeal (Under Development)","Effort to Perform; Efficiency",null,null,null,null,null,null,null,null,null,null,null,null,null,null,null,null,"Enterprise"]
["Member Management","ME08 Manage Member Grievance and Appeal (Under Development)","Accuracy of Process Results",null,null,null,null,null,null,null,null,null,null,null,null,null,null,null,null,"Enterprise"]
["Member Management","ME08 Manage Member Grievance and Appeal (Under Development)","Utility or Value to Stakeholder",null,null,null,null,null,null,null,null,null,null,null,null,null,null,null,null,"Enterprise"]
["Operations Management","OM04 Submit Electronic Attachment","Timeliness of Process ",null,null,null,null,null,null,{"$f":"CONCATENATE(\"Level\",\" \",MIN(G323:G328))","v":"Level 0"},{"$f":"CONCATENATE(\"Level\",\" \",MIN(H323:H328))","v":"Level 0"},null,null,null,null,null,null,null,null,"Enterprise"]
["Operations Management","OM04 Submit Electronic Attachment","Data Access and Accuracy",null,null,null,null,null,null,null,null,null,null,null,null,null,null,null,null,"Enterprise"]
["Operations Management","OM04 Submit Electronic Attachment","Cost-Effectiveness",null,null,null,null,null,null,null,null,null,null,null,null,null,null,null,null,"Enterprise"]
["Operations Management","OM04 Submit Electronic Attachment","Effort to Perform; Efficiency",null,null,null,null,null,null,null,null,null,null,null,null,null,null,null,null,"Enterprise"]
["Operations Management","OM04 Submit Electronic Attachment","Accuracy of Process Results",null,null,null,null,null,null,null,null,null,null,null,null,null,null,null,null,"Enterprise"]
["Operations Management","OM04 Submit Electronic Attachment","Utility or Value to Stakeholder",null,null,null,null,null,null,null,null,null,null,null,null,null,null,null,null,"Enterprise"]
["Operations Management","OM05 Apply Mass Adjustment","Timeliness of Process ",null,null,null,null,null,null,{"$f":"CONCATENATE(\"Level\",\" \",MIN(G329:G334))","v":"Level 0"},{"$f":"CONCATENATE(\"Level\",\" \",MIN(H329:H334))","v":"Level 0"},null,null,null,null,null,null,null,null,"Enterprise"]
["Operations Management","OM05 Apply Mass Adjustment","Data Access and Accuracy",null,null,null,null,null,null,null,null,null,null,null,null,null,null,null,null,"Enterprise"]
["Operations Management","OM05 Apply Mass Adjustment","Cost-Effectiveness",null,null,null,null,null,null,null,null,null,null,null,null,null,null,null,null,"Enterprise"]
["Operations Management","OM05 Apply Mass Adjustment","Effort to Perform; Efficiency",null,null,null,null,null,null,null,null,null,null,null,null,null,null,null,null,"Enterprise"]
["Operations Management","OM05 Apply Mass Adjustment","Accuracy of Process Results",null,null,null,null,null,null,null,null,null,null,null,null,null,null,null,null,"Enterprise"]
["Operations Management","OM05 Apply Mass Adjustment","Utility or Value to Stakeholder",null,null,null,null,null,null,null,null,null,null,null,null,null,null,null,null,"Enterprise"]
["Operations Management","OM07 Process Claims","Timeliness of Process ",null,null,null,null,null,null,{"$f":"CONCATENATE(\"Level\",\" \",MIN(G335:G340))","v":"Level 0"},{"$f":"CONCATENATE(\"Level\",\" \",MIN(H335:H340))","v":"Level 0"},null,null,null,null,null,null,null,null,"Enterprise"]
["Operations Management","OM07 Process Claims","Data Access and Accuracy",null,null,null,null,null,null,null,null,null,null,null,null,null,null,null,null,"Enterprise"]
["Operations Management","OM07 Process Claims","Cost-Effectiveness",null,null,null,null,null,null,null,null,null,null,null,null,null,null,null,null,"Enterprise"]
["Operations Management","OM07 Process Claims","Effort to Perform; Efficiency",null,null,null,null,null,null,null,null,null,null,null,null,null,null,null,null,"Enterprise"]
["Operations Management","OM07 Process Claims","Accuracy of Process Results",null,null,null,null,null,null,null,null,null,null,null,null,null,null,null,null,"Enterprise"]
["Operations Management","OM07 Process Claims","Utility or Value to Stakeholder",null,null,null,null,null,null,null,null,null,null,null,null,null,null,null,null,"Enterprise"]
["Operations Management","OM14 Generate Remittance Advice","Timeliness of Process ",null,null,null,null,null,null,{"$f":"CONCATENATE(\"Level\",\" \",MIN(G341:G346))","v":"Level 0"},{"$f":"CONCATENATE(\"Level\",\" \",MIN(H341:H346))","v":"Level 0"},null,null,null,null,null,null,null,null,"Enterprise"]
["Operations Management","OM14 Generate Remittance Advice","Data Access and Accuracy",null,null,null,null,null,null,null,null,null,null,null,null,null,null,null,null,"Enterprise"]
["Operations Management","OM14 Generate Remittance Advice","Cost-Effectiveness",null,null,null,null,null,null,null,null,null,null,null,null,null,null,null,null,"Enterprise"]
["Operations Management","OM14 Generate Remittance Advice","Effort to Perform; Efficiency",null,null,null,null,null,null,null,null,null,null,null,null,null,null,null,null,"Enterprise"]
["Operations Management","OM14 Generate Remittance Advice","Accuracy of Process Results",null,null,null,null,null,null,null,null,null,null,null,null,null,null,null,null,"Enterprise"]
["Operations Management","OM14 Generate Remittance Advice","Utility or Value to Stakeholder",null,null,null,null,null,null,null,null,null,null,null,null,null,null,null,null,"Enterprise"]
["Operations Management","OM18 Inquire Payment Status","Timeliness of Process ",null,null,null,null,null,null,{"$f":"CONCATENATE(\"Level\",\" \",MIN(G347:G352))","v":"Level 0"},{"$f":"CONCATENATE(\"Level\",\" \",MIN(H347:H352))","v":"Level 0"},null,null,null,null,null,null,null,null,"Enterprise"]
["Operations Management","OM18 Inquire Payment Status","Data Access and Accuracy",null,null,null,null,null,null,null,null,null,null,null,null,null,null,null,null,"Enterprise"]
["Operations Management","OM18 Inquire Payment Status","Cost-Effectiveness",null,null,null,null,null,null,null,null,null,null,null,null,null,null,null,null,"Enterprise"]
["Operations Management","OM18 Inquire Payment Status","Effort to Perform; Efficiency",null,null,null,null,null,null,null,null,null,null,null,null,null,null,null,null,"Enterprise"]
["Operations Management","OM18 Inquire Payment Status","Accuracy of Process Results",null,null,null,null,null,null,null,null,null,null,null,null,null,null,null,null,"Enterprise"]
["Operations Management","OM18 Inquire Payment Status","Utility or Value to Stakeholder",null,null,null,null,null,null,null,null,null,null,null,null,null,null,null,null,"Enterprise"]
["Operations Management","OM20 Calculate Spend-Down Amount","Timeliness of Process ",null,null,null,null,null,null,{"$f":"CONCATENATE(\"Level\",\" \",MIN(G353:G358))","v":"Level 0"},{"$f":"CONCATENATE(\"Level\",\" \",MIN(H353:H358))","v":"Level 0"},null,null,null,null,null,null,null,null,"Enterprise"]
["Operations Management","OM20 Calculate Spend-Down Amount","Data Access and Accuracy",null,null,null,null,null,null,null,null,null,null,null,null,null,null,null,null,"Enterprise"]
["Operations Management","OM20 Calculate Spend-Down Amount","Cost-Effectiveness",null,null,null,null,null,null,null,null,null,null,null,null,null,null,null,null,"Enterprise"]
["Operations Management","OM20 Calculate Spend-Down Amount","Effort to Perform; Efficiency",null,null,null,null,null,null,null,null,null,null,null,null,null,null,null,null,"Enterprise"]
["Operations Management","OM20 Calculate Spend-Down Amount","Accuracy of Process Results",null,null,null,null,null,null,null,null,null,null,null,null,null,null,null,null,"Enterprise"]
["Operations Management","OM20 Calculate Spend-Down Amount","Utility or Value to Stakeholder",null,null,null,null,null,null,null,null,null,null,null,null,null,null,null,null,"Enterprise"]
["Operations Management","OM27 Prepare Provider Payment","Timeliness of Process ",null,null,null,null,null,null,{"$f":"CONCATENATE(\"Level\",\" \",MIN(G359:G364))","v":"Level 0"},{"$f":"CONCATENATE(\"Level\",\" \",MIN(H359:H364))","v":"Level 0"},null,null,null,null,null,null,null,null,"Enterprise"]
["Operations Management","OM27 Prepare Provider Payment","Data Access and Accuracy",null,null,null,null,null,null,null,null,null,null,null,null,null,null,null,null,"Enterprise"]
["Operations Management","OM27 Prepare Provider Payment","Cost-Effectiveness",null,null,null,null,null,null,null,null,null,null,null,null,null,null,null,null,"Enterprise"]
["Operations Management","OM27 Prepare Provider Payment","Effort to Perform; Efficiency",null,null,null,null,null,null,null,null,null,null,null,null,null,null,null,null,"Enterprise"]
["Operations Management","OM27 Prepare Provider Payment","Accuracy of Process Results",null,null,null,null,null,null,null,null,null,null,null,null,null,null,null,null,"Enterprise"]
["Operations Management","OM27 Prepare Provider Payment","Utility or Value to Stakeholder",null,null,null,null,null,null,null,null,null,null,null,null,null,null,null,null,"Enterprise"]
["Operations Management","OM28 Manage Data","Timeliness of Process ",null,null,null,null,null,null,{"$f":"CONCATENATE(\"Level\",\" \",MIN(G365:G370))","v":"Level 0"},{"$f":"CONCATENATE(\"Level\",\" \",MIN(H365:H370))","v":"Level 0"},null,null,null,null,null,null,null,null,"Enterprise"]
["Operations Management","OM28 Manage Data","Data Access and Accuracy",null,null,null,null,null,null,null,null,null,null,null,null,null,null,null,null,"Enterprise"]
["Operations Management","OM28 Manage Data","Cost-Effectiveness",null,null,null,null,null,null,null,null,null,null,null,null,null,null,null,null,"Enterprise"]
["Operations Management","OM28 Manage Data","Effort to Perform; Efficiency",null,null,null,null,null,null,null,null,null,null,null,null,null,null,null,null,"Enterprise"]
["Operations Management","OM28 Manage Data","Accuracy of Process Results",null,null,null,null,null,null,null,null,null,null,null,null,null,null,null,null,"Enterprise"]
["Operations Management","OM28 Manage Data","Utility or Value to Stakeholder",null,null,null,null,null,null,null,null,null,null,null,null,null,null,null,null,"Enterprise"]
["Operations Management","OM29 Process Encounters","Timeliness of Process ",null,null,null,null,null,null,{"$f":"CONCATENATE(\"Level\",\" \",MIN(G371:G376))","v":"Level 0"},{"$f":"CONCATENATE(\"Level\",\" \",MIN(H371:H376))","v":"Level 0"},null,null,null,null,null,null,null,null,"Enterprise"]
["Operations Management","OM29 Process Encounters","Data Access and Accuracy",null,null,null,null,null,null,null,null,null,null,null,null,null,null,null,null,"Enterprise"]
["Operations Management","OM29 Process Encounters","Cost-Effectiveness",null,null,null,null,null,null,null,null,null,null,null,null,null,null,null,null,"Enterprise"]
["Operations Management","OM29 Process Encounters","Effort to Perform; Efficiency",null,null,null,null,null,null,null,null,null,null,null,null,null,null,null,null,"Enterprise"]
["Operations Management","OM29 Process Encounters","Accuracy of Process Results",null,null,null,null,null,null,null,null,null,null,null,null,null,null,null,null,"Enterprise"]
["Operations Management","OM29 Process Encounters","Utility or Value to Stakeholder",null,null,null,null,null,null,null,null,null,null,null,null,null,null,null,null,"Enterprise"]
["Performance Management","PE01 Identify Utilization Anomalies","Timeliness of Process ",null,null,null,null,null,null,{"$f":"CONCATENATE(\"Level\",\" \",MIN(G377:G382))","v":"Level 0"},{"$f":"CONCATENATE(\"Level\",\" \",MIN(H377:H382))","v":"Level 0"},null,null,null,null,null,null,null,null,"Enterprise","HITECH"]
["Performance Management","PE01 Identify Utilization Anomalies","Data Access and Accuracy",null,null,null,null,null,null,null,null,null,null,null,null,null,null,null,null,"Enterprise","HITECH"]
["Performance Management","PE01 Identify Utilization Anomalies","Cost-Effectiveness",null,null,null,null,null,null,null,null,null,null,null,null,null,null,null,null,"Enterprise","HITECH"]
["Performance Management","PE01 Identify Utilization Anomalies","Effort to Perform; Efficiency",null,null,null,null,null,null,null,null,null,null,null,null,null,null,null,null,"Enterprise","HITECH"]
["Performance Management","PE01 Identify Utilization Anomalies","Accuracy of Process Results",null,null,null,null,null,null,null,null,null,null,null,null,null,null,null,null,"Enterprise","HITECH"]
["Performance Management","PE01 Identify Utilization Anomalies","Utility or Value to Stakeholder",null,null,null,null,null,null,null,null,null,null,null,null,null,null,null,null,"Enterprise","HITECH"]
["Performance Management","PE02 Establish Compliance Incident","Timeliness of Process ",null,null,null,null,null,null,{"$f":"CONCATENATE(\"Level\",\" \",MIN(G383:G388))","v":"Level 0"},{"$f":"CONCATENATE(\"Level\",\" \",MIN(H383:H388))","v":"Level 0"},null,null,null,null,null,null,null,null,"Enterprise"]
["Performance Management","PE02 Establish Compliance Incident","Data Access and Accuracy",null,null,null,null,null,null,null,null,null,null,null,null,null,null,null,null,"Enterprise"]
["Performance Management","PE02 Establish Compliance Incident","Cost-Effectiveness",null,null,null,null,null,null,null,null,null,null,null,null,null,null,null,null,"Enterprise"]
["Performance Management","PE02 Establish Compliance Incident","Effort to Perform; Efficiency",null,null,null,null,null,null,null,null,null,null,null,null,null,null,null,null,"Enterprise"]
["Performance Management","PE02 Establish Compliance Incident","Accuracy of Process Results",null,null,null,null,null,null,null,null,null,null,null,null,null,null,null,null,"Enterprise"]
["Performance Management","PE02 Establish Compliance Incident","Utility or Value to Stakeholder",null,null,null,null,null,null,null,null,null,null,null,null,null,null,null,null,"Enterprise"]
["Performance Management","PE03 Manage Compliance Incident Information","Timeliness of Process ",null,null,null,null,null,null,{"$f":"CONCATENATE(\"Level\",\" \",MIN(G389:G394))","v":"Level 0"},{"$f":"CONCATENATE(\"Level\",\" \",MIN(H389:H394))","v":"Level 0"},null,null,null,null,null,null,null,null,"Enterprise"]
["Performance Management","PE03 Manage Compliance Incident Information","Data Access and Accuracy",null,null,null,null,null,null,null,null,null,null,null,null,null,null,null,null,"Enterprise"]
["Performance Management","PE03 Manage Compliance Incident Information","Cost-Effectiveness",null,null,null,null,null,null,null,null,null,null,null,null,null,null,null,null,"Enterprise"]
["Performance Management","PE03 Manage Compliance Incident Information","Effort to Perform; Efficiency",null,null,null,null,null,null,null,null,null,null,null,null,null,null,null,null,"Enterprise"]
["Performance Management","PE03 Manage Compliance Incident Information","Accuracy of Process Results",null,null,null,null,null,null,null,null,null,null,null,null,null,null,null,null,"Enterprise"]
["Performance Management","PE03 Manage Compliance Incident Information","Utility or Value to Stakeholder",null,null,null,null,null,null,null,null,null,null,null,null,null,null,null,null,"Enterprise"]
["Performance Management","PE04 Determine Adverse Action Incident","Timeliness of Process ",null,null,null,null,null,null,{"$f":"CONCATENATE(\"Level\",\" \",MIN(G395:G400))","v":"Level 0"},{"$f":"CONCATENATE(\"Level\",\" \",MIN(H395:H400))","v":"Level 0"},null,null,null,null,null,null,null,null,"Enterprise"]
["Performance Management","PE04 Determine Adverse Action Incident","Data Access and Accuracy",null,null,null,null,null,null,null,null,null,null,null,null,null,null,null,null,"Enterprise"]
["Performance Management","PE04 Determine Adverse Action Incident","Cost-Effectiveness",null,null,null,null,null,null,null,null,null,null,null,null,null,null,null,null,"Enterprise"]
["Performance Management","PE04 Determine Adverse Action Incident","Effort to Perform; Efficiency",null,null,null,null,null,null,null,null,null,null,null,null,null,null,null,null,"Enterprise"]
["Performance Management","PE04 Determine Adverse Action Incident","Accuracy of Process Results",null,null,null,null,null,null,null,null,null,null,null,null,null,null,null,null,"Enterprise"]
["Performance Management","PE04 Determine Adverse Action Incident","Utility or Value to Stakeholder",null,null,null,null,null,null,null,null,null,null,null,null,null,null,null,null,"Enterprise"]
["Performance Management","PE05 Prepare REOMB","Timeliness of Process ",null,null,null,null,null,null,{"$f":"CONCATENATE(\"Level\",\" \",MIN(G401:G406))","v":"Level 0"},{"$f":"CONCATENATE(\"Level\",\" \",MIN(H401:H406))","v":"Level 0"},null,null,null,null,null,null,null,null,"Enterprise"]
["Performance Management","PE05 Prepare REOMB","Data Access and Accuracy",null,null,null,null,null,null,null,null,null,null,null,null,null,null,null,null,"Enterprise"]
["Performance Management","PE05 Prepare REOMB","Cost-Effectiveness",null,null,null,null,null,null,null,null,null,null,null,null,null,null,null,null,"Enterprise"]
["Performance Management","PE05 Prepare REOMB","Effort to Perform; Efficiency",null,null,null,null,null,null,null,null,null,null,null,null,null,null,null,null,"Enterprise"]
["Performance Management","PE05 Prepare REOMB","Accuracy of Process Results",null,null,null,null,null,null,null,null,null,null,null,null,null,null,null,null,"Enterprise"]
["Performance Management","PE05 Prepare REOMB","Utility or Value to Stakeholder",null,null,null,null,null,null,null,null,null,null,null,null,null,null,null,null,"Enterprise"]
["Plan Management","PL01 Develop Agency Goals and Objectives","Timeliness of Process ",null,null,null,null,null,null,{"$f":"CONCATENATE(\"Level\",\" \",MIN(G407:G412))","v":"Level 0"},{"$f":"CONCATENATE(\"Level\",\" \",MIN(H407:H412))","v":"Level 0"},null,null,null,null,null,null,null,null,"Enterprise","HITECH"]
["Plan Management","PL01 Develop Agency Goals and Objectives","Data Access and Accuracy",null,null,null,null,null,null,null,null,null,null,null,null,null,null,null,null,"Enterprise","HITECH"]
["Plan Management","PL01 Develop Agency Goals and Objectives","Cost-Effectiveness",null,null,null,null,null,null,null,null,null,null,null,null,null,null,null,null,"Enterprise","HITECH"]
["Plan Management","PL01 Develop Agency Goals and Objectives","Effort to Perform; Efficiency",null,null,null,null,null,null,null,null,null,null,null,null,null,null,null,null,"Enterprise","HITECH"]
["Plan Management","PL01 Develop Agency Goals and Objectives","Accuracy of Process Results",null,null,null,null,null,null,null,null,null,null,null,null,null,null,null,null,"Enterprise","HITECH"]
["Plan Management","PL01 Develop Agency Goals and Objectives","Utility or Value to Stakeholder",null,null,null,null,null,null,null,null,null,null,null,null,null,null,null,null,"Enterprise","HITECH"]
["Plan Management","PL02 Maintain Program Policy","Timeliness of Process ",null,null,null,null,null,null,{"$f":"CONCATENATE(\"Level\",\" \",MIN(G413:G418))","v":"Level 0"},{"$f":"CONCATENATE(\"Level\",\" \",MIN(H413:H418))","v":"Level 0"},null,null,null,null,null,null,null,null,"Enterprise"]
["Plan Management","PL02 Maintain Program Policy","Data Access and Accuracy",null,null,null,null,null,null,null,null,null,null,null,null,null,null,null,null,"Enterprise"]
["Plan Management","PL02 Maintain Program Policy","Cost-Effectiveness",null,null,null,null,null,null,null,null,null,null,null,null,null,null,null,null,"Enterprise"]
["Plan Management","PL02 Maintain Program Policy","Effort to Perform; Efficiency",null,null,null,null,null,null,null,null,null,null,null,null,null,null,null,null,"Enterprise"]
["Plan Management","PL02 Maintain Program Policy","Accuracy of Process Results",null,null,null,null,null,null,null,null,null,null,null,null,null,null,null,null,"Enterprise"]
["Plan Management","PL02 Maintain Program Policy","Utility or Value to Stakeholder",null,null,null,null,null,null,null,null,null,null,null,null,null,null,null,null,"Enterprise"]
["Plan Management","PL03 Maintain State Plan","Timeliness of Process ",null,null,null,null,null,null,{"$f":"CONCATENATE(\"Level\",\" \",MIN(G419:G424))","v":"Level 0"},{"$f":"CONCATENATE(\"Level\",\" \",MIN(H419:H424))","v":"Level 0"},null,null,null,null,null,null,null,null,"Enterprise","HITECH"]
["Plan Management","PL03 Maintain State Plan","Data Access and Accuracy",null,null,null,null,null,null,null,null,null,null,null,null,null,null,null,null,"Enterprise","HITECH"]
["Plan Management","PL03 Maintain State Plan","Cost-Effectiveness",null,null,null,null,null,null,null,null,null,null,null,null,null,null,null,null,"Enterprise","HITECH"]
["Plan Management","PL03 Maintain State Plan","Effort to Perform; Efficiency",null,null,null,null,null,null,null,null,null,null,null,null,null,null,null,null,"Enterprise","HITECH"]
["Plan Management","PL03 Maintain State Plan","Accuracy of Process Results",null,null,null,null,null,null,null,null,null,null,null,null,null,null,null,null,"Enterprise","HITECH"]
["Plan Management","PL03 Maintain State Plan","Utility or Value to Stakeholder",null,null,null,null,null,null,null,null,null,null,null,null,null,null,null,null,"Enterprise","HITECH"]
["Plan Management","PL04 Manage Health Plan Information","Timeliness of Process ",null,null,null,null,null,null,{"$f":"CONCATENATE(\"Level\",\" \",MIN(G425:G430))","v":"Level 0"},{"$f":"CONCATENATE(\"Level\",\" \",MIN(H425:H430))","v":"Level 0"},null,null,null,null,null,null,null,null,"Enterprise"]
["Plan Management","PL04 Manage Health Plan Information","Data Access and Accuracy",null,null,null,null,null,null,null,null,null,null,null,null,null,null,null,null,"Enterprise"]
["Plan Management","PL04 Manage Health Plan Information","Cost-Effectiveness",null,null,null,null,null,null,null,null,null,null,null,null,null,null,null,null,"Enterprise"]
["Plan Management","PL04 Manage Health Plan Information","Effort to Perform; Efficiency",null,null,null,null,null,null,null,null,null,null,null,null,null,null,null,null,"Enterprise"]
["Plan Management","PL04 Manage Health Plan Information","Accuracy of Process Results",null,null,null,null,null,null,null,null,null,null,null,null,null,null,null,null,"Enterprise"]
["Plan Management","PL04 Manage Health Plan Information","Utility or Value to Stakeholder",null,null,null,null,null,null,null,null,null,null,null,null,null,null,null,null,"Enterprise"]
["Plan Management","PL05 Manage Performance Measures","Timeliness of Process ",null,null,null,null,null,null,{"$f":"CONCATENATE(\"Level\",\" \",MIN(G431:G436))","v":"Level 0"},{"$f":"CONCATENATE(\"Level\",\" \",MIN(H431:H436))","v":"Level 0"},null,null,null,null,null,null,null,null,"Enterprise"]
["Plan Management","PL05 Manage Performance Measures","Data Access and Accuracy",null,null,null,null,null,null,null,null,null,null,null,null,null,null,null,null,"Enterprise"]
["Plan Management","PL05 Manage Performance Measures","Cost-Effectiveness",null,null,null,null,null,null,null,null,null,null,null,null,null,null,null,null,"Enterprise"]
["Plan Management","PL05 Manage Performance Measures","Effort to Perform; Efficiency",null,null,null,null,null,null,null,null,null,null,null,null,null,null,null,null,"Enterprise"]
["Plan Management","PL05 Manage Performance Measures","Accuracy of Process Results",null,null,null,null,null,null,null,null,null,null,null,null,null,null,null,null,"Enterprise"]
["Plan Management","PL05 Manage Performance Measures","Utility or Value to Stakeholder",null,null,null,null,null,null,null,null,null,null,null,null,null,null,null,null,"Enterprise"]
["Plan Management","PL06 Manage Health Benefit Information","Timeliness of Process ",null,null,null,null,null,null,{"$f":"CONCATENATE(\"Level\",\" \",MIN(G437:G442))","v":"Level 0"},{"$f":"CONCATENATE(\"Level\",\" \",MIN(H437:H442))","v":"Level 0"},null,null,null,null,null,null,null,null,"Enterprise"]
["Plan Management","PL06 Manage Health Benefit Information","Data Access and Accuracy",null,null,null,null,null,null,null,null,null,null,null,null,null,null,null,null,"Enterprise"]
["Plan Management","PL06 Manage Health Benefit Information","Cost-Effectiveness",null,null,null,null,null,null,null,null,null,null,null,null,null,null,null,null,"Enterprise"]
["Plan Management","PL06 Manage Health Benefit Information","Effort to Perform; Efficiency",null,null,null,null,null,null,null,null,null,null,null,null,null,null,null,null,"Enterprise"]
["Plan Management","PL06 Manage Health Benefit Information","Accuracy of Process Results",null,null,null,null,null,null,null,null,null,null,null,null,null,null,null,null,"Enterprise"]
["Plan Management","PL06 Manage Health Benefit Information","Utility or Value to Stakeholder",null,null,null,null,null,null,null,null,null,null,null,null,null,null,null,null,"Enterprise"]
["Plan Management","PL07 Manage Reference Information","Timeliness of Process ",null,null,null,null,null,null,{"$f":"CONCATENATE(\"Level\",\" \",MIN(G443:G448))","v":"Level 0"},{"$f":"CONCATENATE(\"Level\",\" \",MIN(H443:H448))","v":"Level 0"},null,null,null,null,null,null,null,null,"Enterprise"]
["Plan Management","PL07 Manage Reference Information","Data Access and Accuracy",null,null,null,null,null,null,null,null,null,null,null,null,null,null,null,null,"Enterprise"]
["Plan Management","PL07 Manage Reference Information","Cost-Effectiveness",null,null,null,null,null,null,null,null,null,null,null,null,null,null,null,null,"Enterprise"]
["Plan Management","PL07 Manage Reference Information","Effort to Perform; Efficiency",null,null,null,null,null,null,null,null,null,null,null,null,null,null,null,null,"Enterprise"]
["Plan Management","PL07 Manage Reference Information","Accuracy of Process Results",null,null,null,null,null,null,null,null,null,null,null,null,null,null,null,null,"Enterprise"]
["Plan Management","PL07 Manage Reference Information","Utility or Value to Stakeholder",null,null,null,null,null,null,null,null,null,null,null,null,null,null,null,null,"Enterprise"]
["Plan Management","PL08 Manage Rate Setting","Timeliness of Process ",null,null,null,null,null,null,{"$f":"CONCATENATE(\"Level\",\" \",MIN(G449:G454))","v":"Level 0"},{"$f":"CONCATENATE(\"Level\",\" \",MIN(H449:H454))","v":"Level 0"},null,null,null,null,null,null,null,null,"Enterprise"]
["Plan Management","PL08 Manage Rate Setting","Data Access and Accuracy",null,null,null,null,null,null,null,null,null,null,null,null,null,null,null,null,"Enterprise"]
["Plan Management","PL08 Manage Rate Setting","Cost-Effectiveness",null,null,null,null,null,null,null,null,null,null,null,null,null,null,null,null,"Enterprise"]
["Plan Management","PL08 Manage Rate Setting","Effort to Perform; Efficiency",null,null,null,null,null,null,null,null,null,null,null,null,null,null,null,null,"Enterprise"]
["Plan Management","PL08 Manage Rate Setting","Accuracy of Process Results",null,null,null,null,null,null,null,null,null,null,null,null,null,null,null,null,"Enterprise"]
["Plan Management","PL08 Manage Rate Setting","Utility or Value to Stakeholder",null,null,null,null,null,null,null,null,null,null,null,null,null,null,null,null,"Enterprise"]
["Provider Management","PM01 Manage Provider Information","Timeliness of Process ",null,null,null,null,null,null,{"$f":"CONCATENATE(\"Level\",\" \",MIN(G455:G460))","v":"Level 0"},{"$f":"CONCATENATE(\"Level\",\" \",MIN(H455:H460))","v":"Level 0"},null,null,null,null,null,null,null,null,"Enterprise","HITECH"]
["Provider Management","PM01 Manage Provider Information","Data Access and Accuracy",null,null,null,null,null,null,null,null,null,null,null,null,null,null,null,null,"Enterprise","HITECH"]
["Provider Management","PM01 Manage Provider Information","Cost-Effectiveness",null,null,null,null,null,null,null,null,null,null,null,null,null,null,null,null,"Enterprise","HITECH"]
["Provider Management","PM01 Manage Provider Information","Effort to Perform; Efficiency",null,null,null,null,null,null,null,null,null,null,null,null,null,null,null,null,"Enterprise","HITECH"]
["Provider Management","PM01 Manage Provider Information","Accuracy of Process Results",null,null,null,null,null,null,null,null,null,null,null,null,null,null,null,null,"Enterprise","HITECH"]
["Provider Management","PM01 Manage Provider Information","Utility or Value to Stakeholder",null,null,null,null,null,null,null,null,null,null,null,null,null,null,null,null,"Enterprise","HITECH"]
["Provider Management","PM02 Manage Provider Communication","Timeliness of Process ",null,null,null,null,null,null,{"$f":"CONCATENATE(\"Level\",\" \",MIN(G461:G466))","v":"Level 0"},{"$f":"CONCATENATE(\"Level\",\" \",MIN(H461:H466))","v":"Level 0"},null,null,null,null,null,null,null,null,"Enterprise","HITECH"]
["Provider Management","PM02 Manage Provider Communication","Data Access and Accuracy",null,null,null,null,null,null,null,null,null,null,null,null,null,null,null,null,"Enterprise","HITECH"]
["Provider Management","PM02 Manage Provider Communication","Cost-Effectiveness",null,null,null,null,null,null,null,null,null,null,null,null,null,null,null,null,"Enterprise","HITECH"]
["Provider Management","PM02 Manage Provider Communication","Effort to Perform; Efficiency",null,null,null,null,null,null,null,null,null,null,null,null,null,null,null,null,"Enterprise","HITECH"]
["Provider Management","PM02 Manage Provider Communication","Accuracy of Process Results",null,null,null,null,null,null,null,null,null,null,null,null,null,null,null,null,"Enterprise","HITECH"]
["Provider Management","PM02 Manage Provider Communication","Utility or Value to Stakeholder",null,null,null,null,null,null,null,null,null,null,null,null,null,null,null,null,"Enterprise","HITECH"]
["Provider Management","PM03 Perform Provider Outreach","Timeliness of Process ",null,null,null,null,null,null,{"$f":"CONCATENATE(\"Level\",\" \",MIN(G467:G472))","v":"Level 0"},{"$f":"CONCATENATE(\"Level\",\" \",MIN(H467:H472))","v":"Level 0"},null,null,null,null,null,null,null,null,"Enterprise","HITECH"]
["Provider Management","PM03 Perform Provider Outreach","Data Access and Accuracy",null,null,null,null,null,null,null,null,null,null,null,null,null,null,null,null,"Enterprise","HITECH"]
["Provider Management","PM03 Perform Provider Outreach","Cost-Effectiveness",null,null,null,null,null,null,null,null,null,null,null,null,null,null,null,null,"Enterprise","HITECH"]
["Provider Management","PM03 Perform Provider Outreach","Effort to Perform; Efficiency",null,null,null,null,null,null,null,null,null,null,null,null,null,null,null,null,"Enterprise","HITECH"]
["Provider Management","PM03 Perform Provider Outreach","Accuracy of Process Results",null,null,null,null,null,null,null,null,null,null,null,null,null,null,null,null,"Enterprise","HITECH"]
["Provider Management","PM03 Perform Provider Outreach","Utility or Value to Stakeholder",null,null,null,null,null,null,null,null,null,null,null,null,null,null,null,null,"Enterprise","HITECH"]
["Provider Management","PM07 Manage Provider Grievance and Appeal","Timeliness of Process ",null,null,null,null,null,null,{"$f":"CONCATENATE(\"Level\",\" \",MIN(G473:G478))","v":"Level 0"},{"$f":"CONCATENATE(\"Level\",\" \",MIN(H473:H478))","v":"Level 0"},null,null,null,null,null,null,null,null,"Enterprise","HITECH"]
["Provider Management","PM07 Manage Provider Grievance and Appeal","Data Access and Accuracy",null,null,null,null,null,null,null,null,null,null,null,null,null,null,null,null,"Enterprise","HITECH"]
["Provider Management","PM07 Manage Provider Grievance and Appeal","Cost-Effectiveness",null,null,null,null,null,null,null,null,null,null,null,null,null,null,null,null,"Enterprise","HITECH"]
["Provider Management","PM07 Manage Provider Grievance and Appeal","Effort to Perform; Efficiency",null,null,null,null,null,null,null,null,null,null,null,null,null,null,null,null,"Enterprise","HITECH"]
["Provider Management","PM07 Manage Provider Grievance and Appeal","Accuracy of Process Results",null,null,null,null,null,null,null,null,null,null,null,null,null,null,null,null,"Enterprise","HITECH"]
["Provider Management","PM07 Manage Provider Grievance and Appeal","Utility or Value to Stakeholder",null,null,null,null,null,null,null,null,null,null,null,null,null,null,null,null,"Enterprise","HITECH"]
["Provider Management","PM08 Terminate Provider","Timeliness of Process ",null,null,null,null,null,null,{"$f":"CONCATENATE(\"Level\",\" \",MIN(G479:G484))","v":"Level 0"},{"$f":"CONCATENATE(\"Level\",\" \",MIN(H479:H484))","v":"Level 0"},null,null,null,null,null,null,null,null,"Enterprise"]
["Provider Management","PM08 Terminate Provider","Data Access and Accuracy",null,null,null,null,null,null,null,null,null,null,null,null,null,null,null,null,"Enterprise"]
["Provider Management","PM08 Terminate Provider","Cost-Effectiveness",null,null,null,null,null,null,null,null,null,null,null,null,null,null,null,null,"Enterprise"]
["Provider Management","PM08 Terminate Provider","Effort to Perform; Efficiency",null,null,null,null,null,null,null,null,null,null,null,null,null,null,null,null,"Enterprise"]
["Provider Management","PM08 Terminate Provider","Accuracy of Process Results",null,null,null,null,null,null,null,null,null,null,null,null,null,null,null,null,"Enterprise"]
["Provider Management","PM08 Terminate Provider","Utility or Value to Stakeholder",null,null,null,null,null,null,null,null,null,null,null,null,null,null,null,null,"Enterprise"]

{"sheet":"IA-Scorecard","index":2,"n_rows":44,"n_cols":21,"rows_kept":44,"cut":false,"hidden":false,"merged":[[4,6,7,6],[4,7,7,7],[0,0,0,5],[0,6,2,7],[2,0,3,0],[2,1,3,1],[2,2,3,2],[2,3,2,4],[16,6,19,6],[16,7,19,7],[8,6,11,6],[8,7,11,7],[12,6,15,6],[12,7,15,7],[20,6,23,6],[20,7,23,7],[24,6,27,6],[24,7,27,7],[40,6,43,6],[40,7,43,7],[28,6,31,6],[28,7,31,7],[32,6,35,6],[32,7,35,7],[36,6,39,6],[36,7,39,7]]}
["MITA Information Architecture (IA) Scorecard\nNote: Before starting, select Assessment Program and State ID below",null,null,null,null,null,"IA Profile by Business Area"]
["Assessment Program:  ","Select Program","State:  ","Select State"]
["Business Area","IA Component Name"," Supporting Evidence","Component Capability Level",null,"Assessment"]
[null,null,null,"As-Is ","To-Be","Date","As-Is","To-Be"]
["Business Relationship Management","Data Management ",null,null,null,null,{"$f":"CONCATENATE(\"Level\",\" \",MIN(D5:D8))","v":"Level 0"},{"$f":"CONCATENATE(\"Level\",\" \",MIN(E5:E8))","v":"Level 0"},null,null,null,null,null,null,null,null,null,null,null,"Enterprise","HITECH"]
["Business Relationship Management","Conceptual Data Model",null,null,null,null,null,null,null,null,null,null,null,null,null,null,null,null,null,"Enterprise","HITECH"]
["Business Relationship Management","Logical Data Model",null,null,null,null,null,null,null,null,null,null,null,null,null,null,null,null,null,"Enterprise","HITECH"]
["Business Relationship Management","Data Standards",null,null,null,null,null,null,null,null,null,null,null,null,null,null,null,null,null,"Enterprise","HITECH"]
["Care Management","Data Management ",null,null,null,null,{"$f":"CONCATENATE(\"Level\",\" \",MIN(D9:D12))","v":"Level 0"},{"$f":"CONCATENATE(\"Level\",\" \",MIN(E9:E12))","v":"Level 0"},null,null,null,null,null,null,null,null,null,null,null,"Enterprise","HITECH"]
["Care Management","Conceptual Data Model",null,null,null,null,null,null,null,null,null,null,null,null,null,null,null,null,null,"Enterprise","HITECH"]
["Care Management","Logical Data Model",null,null,null,null,null,null,null,null,null,null,null,null,null,null,null,null,null,"Enterprise","HITECH"]
["Care Management","Data Standards",null,null,null,null,null,null,null,null,null,null,null,null,null,null,null,null,null,"Enterprise","HITECH"]
["Contractor Management","Data Management ",null,null,null,null,{"$f":"CONCATENATE(\"Level\",\" \",MIN(D13:D16))","v":"Level 0"},{"$f":"CONCATENATE(\"Level\",\" \",MIN(E13:E16))","v":"Level 0"},null,null,null,null,null,null,null,null,null,null,null,"Enterprise"]
["Contractor Management","Conceptual Data Model",null,null,null,null,null,null,null,null,null,null,null,null,null,null,null,null,null,"Enterprise"]
["Contractor Management","Logical Data Model",null,null,null,null,null,null,null,null,null,null,null,null,null,null,null,null,null,"Enterprise"]
["Contractor Management","Data Standards",null,null,null,null,null,null,null,null,null,null,null,null,null,null,null,null,null,"Enterprise"]
["Eligibility and Enrollment Management","Data Management ",null,null,null,null,{"$f":"CONCATENATE(\"Level\",\" \",MIN(D17:D20))","v":"Level 0"},{"$f":"CONCATENATE(\"Level\",\" \",MIN(E17:E20))","v":"Level 0"},null,null,null,null,null,null,null,null,null,null,null,"Enterprise","HITECH"]
["Eligibility and Enrollment Management","Conceptual Data Model",null,null,null,null,null,null,null,null,null,null,null,null,null,null,null,null,null,"Enterprise","HITECH"]
["Eligibility and Enrollment Management","Logical Data Model",null,null,null,null,null,null,null,null,null,null,null,null,null,null,null,null,null,"Enterprise","HITECH"]
["Eligibility and Enrollment Management","Data Standards",null,null,null,null,null,null,null,null,null,null,null,null,null,null,null,null,null,"Enterprise","HITECH"]
["Financial Management","Data Management ",null,null,null,null,{"$f":"CONCATENATE(\"Level\",\" \",MIN(D21:D24))","v":"Level 0"},{"$f":"CONCATENATE(\"Level\",\" \",MIN(E21:E24))","v":"Level 0"},null,null,null,null,null,null,null,null,null,null,null,"Enterprise","HITECH"]
["Financial Management","Conceptual Data Model",null,null,null,null,null,null,null,null,null,null,null,null,null,null,null,null,null,"Enterprise","HITECH"]
["Financial Management","Logical Data Model",null,null,null,null,null,null,null,null,null,null,null,null,null,null,null,null,null,"Enterprise","HITECH"]
["Financial Management","Data Standards",null,null,null,null,null,null,null,null,null,null,null,null,null,null,null,null,null,"Enterprise","HITECH"]
["Member Management","Data Management ",null,null,null,null,{"$f":"CONCATENATE(\"Level\",\" \",MIN(D25:D28))","v":"Level 0"},{"$f":"CONCATENATE(\"Level\",\" \",MIN(E25:E28))","v":"Level 0"},null,null,null,null,null,null,null,null,null,null,null,"Enterprise","HITECH"]
["Member Management","Conceptual Data Model",null,null,null,null,null,null,null,null,null,null,null,null,null,null,null,null,null,"Enterprise","HITECH"]
["Member Management","Logical Data Model",null,null,null,null,null,null,null,null,null,null,null,null,null,null,null,null,null,"Enterprise","HITECH"]
["Member Management","Data Standards",null,null,null,null,null,null,null,null,null,null,null,null,null,null,null,null,null,"Enterprise","HITECH"]
["Operations Management","Data Management ",null,null,null,null,{"$f":"CONCATENATE(\"Level\",\" \",MIN(D29:D32))","v":"Level 0"},{"$f":"CONCATENATE(\"Level\",\" \",MIN(E29:E32))","v":"Level 0"},null,null,null,null,null,null,null,null,null,null,null,"Enterprise"]
["Operations Management","Conceptual Data Model",null,null,null,null,null,null,null,null,null,null,null,null,null,null,null,null,null,"Enterprise"]
["Operations Management","Logical Data Model",null,null,null,null,null,null,null,null,null,null,null,null,null,null,null,null,null,"Enterprise"]
["Operations Management","Data Standards",null,null,null,null,null,null,null,null,null,null,null,null,null,null,null,null,null,"Enterprise"]
["Performance Management","Data Management ",null,null,null,null,{"$f":"CONCATENATE(\"Level\",\" \",MIN(D33:D36))","v":"Level 0"},{"$f":"CONCATENATE(\"Level\",\" \",MIN(E33:E36))","v":"Level 0"},null,null,null,null,null,null,null,null,null,null,null,"Enterprise","HITECH"]
["Performance Management","Conceptual Data Model",null,null,null,null,null,null,null,null,null,null,null,null,null,null,null,null,null,"Enterprise","HITECH"]
["Performance Management","Logical Data Model",null,null,null,null,null,null,null,null,null,null,null,null,null,null,null,null,null,"Enterprise","HITECH"]
["Performance Management","Data Standards",null,null,null,null,null,null,null,null,null,null,null,null,null,null,null,null,null,"Enterprise","HITECH"]
["Plan Management","Data Management ",null,null,null,null,{"$f":"CONCATENATE(\"Level\",\" \",MIN(D37:D40))","v":"Level 0"},{"$f":"CONCATENATE(\"Level\",\" \",MIN(E37:E40))","v":"Level 0"},null,null,null,null,null,null,null,null,null,null,null,"Enterprise","HITECH"]
["Plan Management","Conceptual Data Model",null,null,null,null,null,null,null,null,null,null,null,null,null,null,null,null,null,"Enterprise","HITECH"]
["Plan Management","Logical Data Model",null,null,null,null,null,null,null,null,null,null,null,null,null,null,null,null,null,"Enterprise","HITECH"]
["Plan Management","Data Standards",null,null,null,null,null,null,null,null,null,null,null,null,null,null,null,null,null,"Enterprise","HITECH"]
["Provider Management","Data Management ",null,null,null,null,{"$f":"CONCATENATE(\"Level\",\" \",MIN(D41:D44))","v":"Level 0"},{"$f":"CONCATENATE(\"Level\",\" \",MIN(E41:E44))","v":"Level 0"},null,null,null,null,null,null,null,null,null,null,null,"Enterprise","HITECH"]
["Provider Management","Conceptual Data Model",null,null,null,null,null,null,null,null,null,null,null,null,null,null,null,null,null,"Enterprise","HITECH"]
["Provider Management","Logical Data Model",null,null,null,null,null,null,null,null,null,null,null,null,null,null,null,null,null,"Enterprise","HITECH"]
["Provider Management","Data Standards",null,null,null,null,null,null,null,null,null,null,null,null,null,null,null,null,null,"Enterprise","HITECH"]

{"sheet":"TA-Scorecard","index":3,"n_rows":154,"n_cols":21,"rows_kept":154,"cut":false,"hidden":false,"merged":[[94,7,108,7],[94,8,108,8],[2,1,3,1],[139,7,153,7],[139,8,153,8],[4,7,18,7],[4,8,18,8],[19,7,33,7],[19,8,33,8],[109,7,123,7],[109,8,123,8],[124,7,138,7],[124,8,138,8],[34,7,48,7],[34,8,48,8],[49,7,63,7],[0,0,0,6],[0,7,2,8],[2,0,3,0],[2,2,3,2],[2,3,3,3],[2,4,2,5],[49,8,63,8],[64,7,78,7],[64,8,78,8],[79,7,93,7],[79,8,93,8]]}
["MITA Technical Architecture (TA) Scorecard\nNote: Before starting, select Assessment Program and State ID below",null,null,null,null,null,null,"TA Profile by Business Area"]
["Assessment Program:  ","Select Program","State:","Select State"]
["Business Area","Technical Service Area","Technical Service Classification"," Supporting Evidence","Technical Service Level",null,"Assessment"]
[null,null,null,null,"As-Is ","To-Be","Date","As-Is","To-Be"]
["Business Relationship Management","Access and Delivery","Client Support",null,null,null,null,{"$f":"CONCATENATE(\"Level\",\" \",MIN(E5:E19))","v":"Level 0"},{"$f":"CONCATENATE(\"Level\",\" \",MIN(F5:F19))","v":"Level 0"},null,null,null,null,null,null,null,null,null,null,"Enterprise","HITECH"]
["Business Relationship Management","Access and Delivery","Business Intelligence",null,null,null,null,null,null,null,null,null,null,null,null,null,null,null,null,"Enterprise","HITECH"]
["Business Relationship Management","Access and Delivery","Forms and Reporting ",null,null,null,null,null,null,null,null,null,null,null,null,null,null,null,null,"Enterprise","HITECH"]
["Business Relationship Management","Access and Delivery","Performance Measurement",null,null,null,null,null,null,null,null,null,null,null,null,null,null,null,null,"Enterprise","HITECH"]
["Business Relationship Management","Access and Delivery","Security and Privacy",null,null,null,null,null,null,null,null,null,null,null,null,null,null,null,null,"Enterprise","HITECH"]
["Business Relationship Management","Intermediary and Interface","Business Process Management",null,null,null,null,null,null,null,null,null,null,null,null,null,null,null,null,"Enterprise","HITECH"]
["Business Relationship Management","Intermediary and Interface","Relationship Management",null,null,null,null,null,null,null,null,null,null,null,null,null,null,null,null,"Enterprise","HITECH"]
["Business Relationship Management","Intermediary and Interface","Data Connectivity",null,null,null,null,null,null,null,null,null,null,null,null,null,null,null,null,"Enterprise","HITECH"]
["Business Relationship Management","Intermediary and Interface","Service-Oriented Architecture",null,null,null,null,null,null,null,null,null,null,null,null,null,null,null,null,"Enterprise","HITECH"]
["Business Relationship Management","Intermediary and Interface","System Extensibility",null,null,null,null,null,null,null,null,null,null,null,null,null,null,null,null,"Enterprise","HITECH"]
["Business Relationship Management","Integration and Utility","Configuration Management",null,null,null,null,null,null,null,null,null,null,null,null,null,null,null,null,"Enterprise","HITECH"]
["Business Relationship Management","Integration and Utility","Data Access & Management",null,null,null,null,null,null,null,null,null,null,null,null,null,null,null,null,"Enterprise","HITECH"]
["Business Relationship Management","Integration and Utility","Decision Management",null,null,null,null,null,null,null,null,null,null,null,null,null,null,null,null,"Enterprise","HITECH"]
["Business Relationship Management","Integration and Utility","Logging",null,null,null,null,null,null,null,null,null,null,null,null,null,null,null,null,"Enterprise","HITECH"]
["Business Relationship Management","Integration and Utility","Utility",null,null,null,null,null,null,null,null,null,null,null,null,null,null,null,null,"Enterprise","HITECH"]
["Care Management","Access and Delivery","Client Support",null,null,null,null,{"$f":"CONCATENATE(\"Level\",\" \",MIN(E20:E34))","v":"Level 0"},{"$f":"CONCATENATE(\"Level\",\" \",MIN(F20:F34))","v":"Level 0"},null,null,null,null,null,null,null,null,null,null,"Enterprise","HITECH"]
["Care Management","Access and Delivery","Business Intelligence",null,null,null,null,null,null,null,null,null,null,null,null,null,null,null,null,"Enterprise","HITECH"]
["Care Management","Access and Delivery","Forms and Reporting ",null,null,null,null,null,null,null,null,null,null,null,null,null,null,null,null,"Enterprise","HITECH"]
["Care Management","Access and Delivery","Performance Measurement",null,null,null,null,null,null,null,null,null,null,null,null,null,null,null,null,"Enterprise","HITECH"]
["Care Management","Access and Delivery","Security and Privacy",null,null,null,null,null,null,null,null,null,null,null,null,null,null,null,null,"Enterprise","HITECH"]
["Care Management","Intermediary and Interface","Business Process Management",null,null,null,null,null,null,null,null,null,null,null,null,null,null,null,null,"Enterprise","HITECH"]
["Care Management","Intermediary and Interface","Relationship Management",null,null,null,null,null,null,null,null,null,null,null,null,null,null,null,null,"Enterprise","HITECH"]
["Care Management","Intermediary and Interface","Data Connectivity",null,null,null,null,null,null,null,null,null,null,null,null,null,null,null,null,"Enterprise","HITECH"]
["Care Management","Intermediary and Interface","Service-Oriented Architecture",null,null,null,null,null,null,null,null,null,null,null,null,null,null,null,null,"Enterprise","HITECH"]
["Care Management","Intermediary and Interface","System Extensibility",null,null,null,null,null,null,null,null,null,null,null,null,null,null,null,null,"Enterprise","HITECH"]
["Care Management","Integration and Utility","Configuration Management",null,null,null,null,null,null,null,null,null,null,null,null,null,null,null,null,"Enterprise","HITECH"]
["Care Management","Integration and Utility","Data Access & Management",null,null,null,null,null,null,null,null,null,null,null,null,null,null,null,null,"Enterprise","HITECH"]
["Care Management","Integration and Utility","Decision Management",null,null,null,null,null,null,null,null,null,null,null,null,null,null,null,null,"Enterprise","HITECH"]
["Care Management","Integration and Utility","Logging",null,null,null,null,null,null,null,null,null,null,null,null,null,null,null,null,"Enterprise","HITECH"]
["Care Management","Integration and Utility","Utility",null,null,null,null,null,null,null,null,null,null,null,null,null,null,null,null,"Enterprise","HITECH"]
["Contractor Management","Access and Delivery","Client Support",null,null,null,null,{"$f":"CONCATENATE(\"Level\",\" \",MIN(E35:E49))","v":"Level 0"},{"$f":"CONCATENATE(\"Level\",\" \",MIN(F35:F49))","v":"Level 0"},null,null,null,null,null,null,null,null,null,null,"Enterprise"]
["Contractor Management","Access and Delivery","Business Intelligence",null,null,null,null,null,null,null,null,null,null,null,null,null,null,null,null,"Enterprise"]
["Contractor Management","Access and Delivery","Forms and Reporting ",null,null,null,null,null,null,null,null,null,null,null,null,null,null,null,null,"Enterprise"]
["Contractor Management","Access and Delivery","Performance Measurement",null,null,null,null,null,null,null,null,null,null,null,null,null,null,null,null,"Enterprise"]
["Contractor Management","Access and Delivery","Security and Privacy",null,null,null,null,null,null,null,null,null,null,null,null,null,null,null,null,"Enterprise"]
["Contractor Management","Intermediary and Interface","Business Process Management",null,null,null,null,null,null,null,null,null,null,null,null,null,null,null,null,"Enterprise"]
["Contractor Management","Intermediary and Interface","Relationship Management",null,null,null,null,null,null,null,null,null,null,null,null,null,null,null,null,"Enterprise"]
["Contractor Management","Intermediary and Interface","Data Connectivity",null,null,null,null,null,null,null,null,null,null,null,null,null,null,null,null,"Enterprise"]
["Contractor Management","Intermediary and Interface","Service-Oriented Architecture",null,null,null,null,null,null,null,null,null,null,null,null,null,null,null,null,"Enterprise"]
["Contractor Management","Intermediary and Interface","System Extensibility",null,null,null,null,null,null,null,null,null,null,null,null,null,null,null,null,"Enterprise"]
["Contractor Management","Integration and Utility","Configuration Management",null,null,null,null,null,null,null,null,null,null,null,null,null,null,null,null,"Enterprise"]
["Contractor Management","Integration and Utility","Data Access & Management",null,null,null,null,null,null,null,null,null,null,null,null,null,null,null,null,"Enterprise"]
["Contractor Management","Integration and Utility","Decision Management",null,null,null,null,null,null,null,null,null,null,null,null,null,null,null,null,"Enterprise"]
["Contractor Management","Integration and Utility","Logging",null,null,null,null,null,null,null,null,null,null,null,null,null,null,null,null,"Enterprise"]
["Contractor Management","Integration and Utility","Utility",null,null,null,null,null,null,null,null,null,null,null,null,null,null,null,null,"Enterprise"]
["Eligibility and Enrollment Management","Access and Delivery","Client Support",null,null,null,null,{"$f":"CONCATENATE(\"Level\",\" \",MIN(E50:E64))","v":"Level 0"},{"$f":"CONCATENATE(\"Level\",\" \",MIN(F50:F64))","v":"Level 0"},null,null,null,null,null,null,null,null,null,null,"Enterprise","HITECH"]
["Eligibility and Enrollment Management","Access and Delivery","Business Intelligence",null,null,null,null,null,null,null,null,null,null,null,null,null,null,null,null,"Enterprise","HITECH"]
["Eligibility and Enrollment Management","Access and Delivery","Forms and Reporting ",null,null,null,null,null,null,null,null,null,null,null,null,null,null,null,null,"Enterprise","HITECH"]
["Eligibility and Enrollment Management","Access and Delivery","Performance Measurement",null,null,null,null,null,null,null,null,null,null,null,null,null,null,null,null,"Enterprise","HITECH"]
["Eligibility and Enrollment Management","Access and Delivery","Security and Privacy",null,null,null,null,null,null,null,null,null,null,null,null,null,null,null,null,"Enterprise","HITECH"]
["Eligibility and Enrollment Management","Intermediary and Interface","Business Process Management",null,null,null,null,null,null,null,null,null,null,null,null,null,null,null,null,"Enterprise","HITECH"]
["Eligibility and Enrollment Management","Intermediary and Interface","Relationship Management",null,null,null,null,null,null,null,null,null,null,null,null,null,null,null,null,"Enterprise","HITECH"]
["Eligibility and Enrollment Management","Intermediary and Interface","Data Connectivity",null,null,null,null,null,null,null,null,null,null,null,null,null,null,null,null,"Enterprise","HITECH"]
["Eligibility and Enrollment Management","Intermediary and Interface","Service-Oriented Architecture",null,null,null,null,null,null,null,null,null,null,null,null,null,null,null,null,"Enterprise","HITECH"]
["Eligibility and Enrollment Management","Intermediary and Interface","System Extensibility",null,null,null,null,null,null,null,null,null,null,null,null,null,null,null,null,"Enterprise","HITECH"]
["Eligibility and Enrollment Management","Integration and Utility","Configuration Management",null,null,null,null,null,null,null,null,null,null,null,null,null,null,null,null,"Enterprise","HITECH"]
["Eligibility and Enrollment Management","Integration and Utility","Data Access & Management",null,null,null,null,null,null,null,null,null,null,null,null,null,null,null,null,"Enterprise","HITECH"]
["Eligibility and Enrollment Management","Integration and Utility","Decision Management",null,null,null,null,null,null,null,null,null,null,null,null,null,null,null,null,"Enterprise","HITECH"]
["Eligibility and Enrollment Management","Integration and Utility","Logging",null,null,null,null,null,null,null,null,null,null,null,null,null,null,null,null,"Enterprise","HITECH"]
["Eligibility and Enrollment Management","Integration and Utility","Utility",null,null,null,null,null,null,null,null,null,null,null,null,null,null,null,null,"Enterprise","HITECH"]
["Financial Management","Access and Delivery","Client Support",null,null,null,null,{"$f":"CONCATENATE(\"Level\",\" \",MIN(E65:E79))","v":"Level 0"},{"$f":"CONCATENATE(\"Level\",\" \",MIN(F65:F79))","v":"Level 0"},null,null,null,null,null,null,null,null,null,null,"Enterprise","HITECH"]
["Financial Management","Access and Delivery","Business Intelligence",null,null,null,null,null,null,null,null,null,null,null,null,null,null,null,null,"Enterprise","HITECH"]
["Financial Management","Access and Delivery","Forms and Reporting ",null,null,null,null,null,null,null,null,null,null,null,null,null,null,null,null,"Enterprise","HITECH"]
["Financial Management","Access and Delivery","Performance Measurement",null,null,null,null,null,null,null,null,null,null,null,null,null,null,null,null,"Enterprise","HITECH"]
["Financial Management","Access and Delivery","Security and Privacy",null,null,null,null,null,null,null,null,null,null,null,null,null,null,null,null,"Enterprise","HITECH"]
["Financial Management","Intermediary and Interface","Business Process Management",null,null,null,null,null,null,null,null,null,null,null,null,null,null,null,null,"Enterprise","HITECH"]
["Financial Management","Intermediary and Interface","Relationship Management",null,null,null,null,null,null,null,null,null,null,null,null,null,null,null,null,"Enterprise","HITECH"]
["Financial Management","Intermediary and Interface","Data Connectivity",null,null,null,null,null,null,null,null,null,null,null,null,null,null,null,null,"Enterprise","HITECH"]
["Financial Management","Intermediary and Interface","Service-Oriented Architecture",null,null,null,null,null,null,null,null,null,null,null,null,null,null,null,null,"Enterprise","HITECH"]
["Financial Management","Intermediary and Interface","System Extensibility",null,null,null,null,null,null,null,null,null,null,null,null,null,null,null,null,"Enterprise","HITECH"]
["Financial Management","Integration and Utility","Configuration Management",null,null,null,null,null,null,null,null,null,null,null,null,null,null,null,null,"Enterprise","HITECH"]
["Financial Management","Integration and Utility","Data Access & Management",null,null,null,null,null,null,null,null,null,null,null,null,null,null,null,null,"Enterprise","HITECH"]
["Financial Management","Integration and Utility","Decision Management",null,null,null,null,null,null,null,null,null,null,null,null,null,null,null,null,"Enterprise","HITECH"]
["Financial Management","Integration and Utility","Logging",null,null,null,null,null,null,null,null,null,null,null,null,null,null,null,null,"Enterprise","HITECH"]
["Financial Management","Integration and Utility","Utility",null,null,null,null,null,null,null,null,null,null,null,null,null,null,null,null,"Enterprise","HITECH"]
["Member Management","Access and Delivery","Client Support",null,null,null,null,{"$f":"CONCATENATE(\"Level\",\" \",MIN(E80:E94))","v":"Level 0"},{"$f":"CONCATENATE(\"Level\",\" \",MIN(F80:F94))","v":"Level 0"},null,null,null,null,null,null,null,null,null,null,"Enterprise","HITECH"]
["Member Management","Access and Delivery","Business Intelligence",null,null,null,null,null,null,null,null,null,null,null,null,null,null,null,null,"Enterprise","HITECH"]
["Member Management","Access and Delivery","Forms and Reporting ",null,null,null,null,null,null,null,null,null,null,null,null,null,null,null,null,"Enterprise","HITECH"]
["Member Management","Access and Delivery","Performance Measurement",null,null,null,null,null,null,null,null,null,null,null,null,null,null,null,null,"Enterprise","HITECH"]
["Member Management","Access and Delivery","Security and Privacy",null,null,null,null,null,null,null,null,null,null,null,null,null,null,null,null,"Enterprise","HITECH"]
["Member Management","Intermediary and Interface","Business Process Management",null,null,null,null,null,null,null,null,null,null,null,null,null,null,null,null,"Enterprise","HITECH"]
["Member Management","Intermediary and Interface","Relationship Management",null,null,null,null,null,null,null,null,null,null,null,null,null,null,null,null,"Enterprise","HITECH"]
["Member Management","Intermediary and Interface","Data Connectivity",null,null,null,null,null,null,null,null,null,null,null,null,null,null,null,null,"Enterprise","HITECH"]
["Member Management","Intermediary and Interface","Service-Oriented Architecture",null,null,null,null,null,null,null,null,null,null,null,null,null,null,null,null,"Enterprise","HITECH"]
["Member Management","Intermediary and Interface","System Extensibility",null,null,null,null,null,null,null,null,null,null,null,null,null,null,null,null,"Enterprise","HITECH"]
["Member Management","Integration and Utility","Configuration Management",null,null,null,null,null,null,null,null,null,null,null,null,null,null,null,null,"Enterprise","HITECH"]
["Member Management","Integration and Utility","Data Access & Management",null,null,null,null,null,null,null,null,null,null,null,null,null,null,null,null,"Enterprise","HITECH"]
["Member Management","Integration and Utility","Decision Management",null,null,null,null,null,null,null,null,null,null,null,null,null,null,null,null,"Enterprise","HITECH"]
["Member Management","Integration and Utility","Logging",null,null,null,null,null,null,null,null,null,null,null,null,null,null,null,null,"Enterprise","HITECH"]
["Member Management","Integration and Utility","Utility",null,null,null,null,null,null,null,null,null,null,null,null,null,null,null,null,"Enterprise","HITECH"]
["Operations Management","Access and Delivery","Client Support",null,null,null,null,{"$f":"CONCATENATE(\"Level\",\" \",MIN(E95:E109))","v":"Level 0"},{"$f":"CONCATENATE(\"Level\",\" \",MIN(F95:F109))","v":"Level 0"},null,null,null,null,null,null,null,null,null,null,"Enterprise"]
["Operations Management","Access and Delivery","Business Intelligence",null,null,null,null,null,null,null,null,null,null,null,null,null,null,null,null,"Enterprise"]
["Operations Management","Access and Delivery","Forms and Reporting ",null,null,null,null,null,null,null,null,null,null,null,null,null,null,null,null,"Enterprise"]
["Operations Management","Access and Delivery","Performance Measurement",null,null,null,null,null,null,null,null,null,null,null,null,null,null,null,null,"Enterprise"]
["Operations Management","Access and Delivery","Security and Privacy",null,null,null,null,null,null,null,null,null,null,null,null,null,null,null,null,"Enterprise"]
["Operations Management","Intermediary and Interface","Business Process Management",null,null,null,null,null,null,null,null,null,null,null,null,null,null,null,null,"Enterprise"]
["Operations Management","Intermediary and Interface","Relationship Management",null,null,null,null,null,null,null,null,null,null,null,null,null,null,null,null,"Enterprise"]
["Operations Management","Intermediary and Interface","Data Connectivity",null,null,null,null,null,null,null,null,null,null,null,null,null,null,null,null,"Enterprise"]
["Operations Management","Intermediary and Interface","Service-Oriented Architecture",null,null,null,null,null,null,null,null,null,null,null,null,null,null,null,null,"Enterprise"]
["Operations Management","Intermediary and Interface","System Extensibility",null,null,null,null,null,null,null,null,null,null,null,null,null,null,null,null,"Enterprise"]
["Operations Management","Integration and Utility","Configuration Management",null,null,null,null,null,null,null,null,null,null,null,null,null,null,null,null,"Enterprise"]
["Operations Management","Integration and Utility","Data Access & Management",null,null,null,null,null,null,null,null,null,null,null,null,null,null,null,null,"Enterprise"]
["Operations Management","Integration and Utility","Decision Management",null,null,null,null,null,null,null,null,null,null,null,null,null,null,null,null,"Enterprise"]
["Operations Management","Integration and Utility","Logging",null,null,null,null,null,null,null,null,null,null,null,null,null,null,null,null,"Enterprise"]
["Operations Management","Integration and Utility","Utility",null,null,null,null,null,null,null,null,null,null,null,null,null,null,null,null,"Enterprise"]
["Performance Management","Access and Delivery","Client Support",null,null,null,null,{"$f":"CONCATENATE(\"Level\",\" \",MIN(E110:E124))","v":"Level 0"},{"$f":"CONCATENATE(\"Level\",\" \",MIN(F110:F124))","v":"Level 0"},null,null,null,null,null,null,null,null,null,null,"Enterprise","HITECH"]
["Performance Management","Access and Delivery","Business Intelligence",null,null,null,null,null,null,null,null,null,null,null,null,null,null,null,null,"Enterprise","HITECH"]
["Performance Management","Access and Delivery","Forms and Reporting ",null,null,null,null,null,null,null,null,null,null,null,null,null,null,null,null,"Enterprise","HITECH"]
["Performance Management","Access and Delivery","Performance Measurement",null,null,null,null,null,null,null,null,null,null,null,null,null,null,null,null,"Enterprise","HITECH"]
["Performance Management","Access and Delivery","Security and Privacy",null,null,null,null,null,null,null,null,null,null,null,null,null,null,null,null,"Enterprise","HITECH"]
["Performance Management","Intermediary and Interface","Business Process Management",null,null,null,null,null,null,null,null,null,null,null,null,null,null,null,null,"Enterprise","HITECH"]
["Performance Management","Intermediary and Interface","Relationship Management",null,null,null,null,null,null,null,null,null,null,null,null,null,null,null,null,"Enterprise","HITECH"]
["Performance Management","Intermediary and Interface","Data Connectivity",null,null,null,null,null,null,null,null,null,null,null,null,null,null,null,null,"Enterprise","HITECH"]
["Performance Management","Intermediary and Interface","Service-Oriented Architecture",null,null,null,null,null,null,null,null,null,null,null,null,null,null,null,null,"Enterprise","HITECH"]
["Performance Management","Intermediary and Interface","System Extensibility",null,null,null,null,null,null,null,null,null,null,null,null,null,null,null,null,"Enterprise","HITECH"]
["Performance Management","Integration and Utility","Configuration Management",null,null,null,null,null,null,null,null,null,null,null,null,null,null,null,null,"Enterprise","HITECH"]
["Performance Management","Integration and Utility","Data Access & Management",null,null,null,null,null,null,null,null,null,null,null,null,null,null,null,null,"Enterprise","HITECH"]
["Performance Management","Integration and Utility","Decision Management",null,null,null,null,null,null,null,null,null,null,null,null,null,null,null,null,"Enterprise","HITECH"]
["Performance Management","Integration and Utility","Logging",null,null,null,null,null,null,null,null,null,null,null,null,null,null,null,null,"Enterprise","HITECH"]
["Performance Management","Integration and Utility","Utility",null,null,null,null,null,null,null,null,null,null,null,null,null,null,null,null,"Enterprise","HITECH"]
["Plan Management","Access and Delivery","Client Support",null,null,null,null,{"$f":"CONCATENATE(\"Level\",\" \",MIN(E125:E139))","v":"Level 0"},{"$f":"CONCATENATE(\"Level\",\" \",MIN(F125:F139))","v":"Level 0"},null,null,null,null,null,null,null,null,null,null,"Enterprise","HITECH"]
["Plan Management","Access and Delivery","Business Intelligence",null,null,null,null,null,null,null,null,null,null,null,null,null,null,null,null,"Enterprise","HITECH"]
["Plan Management","Access and Delivery","Forms and Reporting ",null,null,null,null,null,null,null,null,null,null,null,null,null,null,null,null,"Enterprise","HITECH"]
["Plan Management","Access and Delivery","Performance Measurement",null,null,null,null,null,null,null,null,null,null,null,null,null,null,null,null,"Enterprise","HITECH"]
["Plan Management","Access and Delivery","Security and Privacy",null,null,null,null,null,null,null,null,null,null,null,null,null,null,null,null,"Enterprise","HITECH"]
["Plan Management","Intermediary and Interface","Business Process Management",null,null,null,null,null,null,null,null,null,null,null,null,null,null,null,null,"Enterprise","HITECH"]
["Plan Management","Intermediary and Interface","Relationship Management",null,null,null,null,null,null,null,null,null,null,null,null,null,null,null,null,"Enterprise","HITECH"]
["Plan Management","Intermediary and Interface","Data Connectivity",null,null,null,null,null,null,null,null,null,null,null,null,null,null,null,null,"Enterprise","HITECH"]
["Plan Management","Intermediary and Interface","Service-Oriented Architecture",null,null,null,null,null,null,null,null,null,null,null,null,null,null,null,null,"Enterprise","HITECH"]
["Plan Management","Intermediary and Interface","System Extensibility",null,null,null,null,null,null,null,null,null,null,null,null,null,null,null,null,"Enterprise","HITECH"]
["Plan Management","Integration and Utility","Configuration Management",null,null,null,null,null,null,null,null,null,null,null,null,null,null,null,null,"Enterprise","HITECH"]
["Plan Management","Integration and Utility","Data Access & Management",null,null,null,null,null,null,null,null,null,null,null,null,null,null,null,null,"Enterprise","HITECH"]
["Plan Management","Integration and Utility","Decision Management",null,null,null,null,null,null,null,null,null,null,null,null,null,null,null,null,"Enterprise","HITECH"]
["Plan Management","Integration and Utility","Logging",null,null,null,null,null,null,null,null,null,null,null,null,null,null,null,null,"Enterprise","HITECH"]
["Plan Management","Integration and Utility","Utility",null,null,null,null,null,null,null,null,null,null,null,null,null,null,null,null,"Enterprise","HITECH"]
["Provider Management","Access and Delivery","Client Support",null,null,null,null,{"$f":"CONCATENATE(\"Level\",\" \",MIN(E140:E154))","v":"Level 0"},{"$f":"CONCATENATE(\"Level\",\" \",MIN(F140:F154))","v":"Level 0"},null,null,null,null,null,null,null,null,null,null,"Enterprise","HITECH"]
["Provider Management","Access and Delivery","Business Intelligence",null,null,null,null,null,null,null,null,null,null,null,null,null,null,null,null,"Enterprise","HITECH"]
["Provider Management","Access and Delivery","Forms and Reporting ",null,null,null,null,null,null,null,null,null,null,null,null,null,null,null,null,"Enterprise","HITECH"]
["Provider Management","Access and Delivery","Performance Measurement",null,null,null,null,null,null,null,null,null,null,null,null,null,null,null,null,"Enterprise","HITECH"]
["Provider Management","Access and Delivery","Security and Privacy",null,null,null,null,null,null,null,null,null,null,null,null,null,null,null,null,"Enterprise","HITECH"]
["Provider Management","Intermediary and Interface","Business Process Management",null,null,null,null,null,null,null,null,null,null,null,null,null,null,null,null,"Enterprise","HITECH"]
["Provider Management","Intermediary and Interface","Relationship Management",null,null,null,null,null,null,null,null,null,null,null,null,null,null,null,null,"Enterprise","HITECH"]
["Provider Management","Intermediary and Interface","Data Connectivity",null,null,null,null,null,null,null,null,null,null,null,null,null,null,null,null,"Enterprise","HITECH"]
["Provider Management","Intermediary and Interface","Service-Oriented Architecture",null,null,null,null,null,null,null,null,null,null,null,null,null,null,null,null,"Enterprise","HITECH"]
["Provider Management","Intermediary and Interface","System Extensibility",null,null,null,null,null,null,null,null,null,null,null,null,null,null,null,null,"Enterprise","HITECH"]
["Provider Management","Integration and Utility","Configuration Management",null,null,null,null,null,null,null,null,null,null,null,null,null,null,null,null,"Enterprise","HITECH"]
["Provider Management","Integration and Utility","Data Access & Management",null,null,null,null,null,null,null,null,null,null,null,null,null,null,null,null,"Enterprise","HITECH"]
["Provider Management","Integration and Utility","Decision Management",null,null,null,null,null,null,null,null,null,null,null,null,null,null,null,null,"Enterprise","HITECH"]
["Provider Management","Integration and Utility","Logging",null,null,null,null,null,null,null,null,null,null,null,null,null,null,null,null,"Enterprise","HITECH"]
["Provider Management","Integration and Utility","Utility",null,null,null,null,null,null,null,null,null,null,null,null,null,null,null,null,"Enterprise","HITECH"]

{"sheet":"7S&C Scorecard","index":4,"n_rows":214,"n_cols":21,"rows_kept":214,"cut":false,"hidden":false,"merged":[[145,7,147,7],[148,7,150,7],[151,7,153,7],[154,7,156,7],[157,7,159,7],[160,7,162,7],[163,7,165,7],[118,7,120,7],[121,7,123,7],[124,7,126,7],[127,7,129,7],[130,7,132,7],[133,7,135,7],[136,7,138,7],[139,7,141,7],[142,7,144,7],[91,7,93,7],[94,7,96,7],[97,7,99,7],[100,7,102,7],[103,7,105,7],[106,7,108,7],[109,7,111,7],[112,7,114,7],[115,7,117,7],[64,7,66,7],[67,7,69,7],[70,7,72,7],[73,7,75,7],[76,7,78,7],[79,7,81,7],[82,7,84,7],[85,7,87,7],[88,7,90,7],[37,7,39,7],[40,7,42,7],[43,7,45,7],[46,7,48,7],[49,7,51,7],[52,7,54,7],[55,7,57,7],[58,7,60,7],[61,7,63,7],[10,7,12,7],[13,7,15,7],[16,7,18,7],[19,7,21,7],[22,7,24,7],[25,7,27,7],[28,7,30,7],[31,7,33,7],[34,7,36,7],[0,0,0,6],[0,7,2,8],[2,0,3,0],[2,1,3,1],[2,2,3,2],[2,3,3,3],[2,4,2,5],[4,7,6,7],[7,7,9,7],[166,7,168,7],[169,7,171,7],[172,7,174,7],[175,7,177,7],[178,7,180,7],[181,7,183,7],[184,7,186,7],[187,7,189,7],[190,7,192,7],[193,7,195,7],[196,7,198,7],[199,7,201,7],[202,7,204,7],[205,7,207,7],[208,7,210,7],[211,7,213,7],[211,8,213,8],[4,8,6,8],[7,8,9,8],[10,8,12,8],[13,8,15,8],[16,8,18,8],[19,8,21,8],[22,8,24,8],[25,8,27,8],[28,8,30,8],[31,8,33,8],[34,8,36,8],[37,8,39,8],[40,8,42,8],[43,8,45,8],[46,8,48,8],[49,8,51,8],[52,8,54,8],[55,8,57,8],[58,8,60,8],[61,8,63,8],[64,8,66,8],[67,8,69,8],[70,8,72,8],[73,8,75,8],[76,8,78,8],[79,8,81,8],[82,8,84,8],[85,8,87,8],[88,8,90,8],[91,8,93,8],[94,8,96,8],[97,8,99,8],[100,8,102,8],[103,8,105,8],[106,8,108,8],[109,8,111,8],[112,8,114,8],[115,8,117,8],[118,8,120,8],[121,8,123,8],[124,8,126,8],[127,8,129,8],[130,8,132,8],[133,8,135,8],[136,8,138,8],[139,8,141,8],[142,8,144,8],[145,8,147,8],[148,8,150,8],[151,8,153,8],[154,8,156,8],[157,8,159,8],[187,8,189,8],[190,8,192,8],[193,8,195,8],[196,8,198,8],[199,8,201,8],[202,8,204,8],[205,8,207,8],[208,8,210,8],[160,8,162,8],[163,8,165,8],[166,8,168,8],[169,8,171,8],[172,8,174,8],[175,8,177,8],[178,8,180,8],[181,8,183,8],[184,8,186,8]]}
["Seven Standards and Conditions (7SC) Scorecard\nNote: Before starting, select Assessment Program and State ID below",null,null,null,null,null,null,"7SC Profile by Business Area"]
["Assessment Program:  ","Select Program","State:  ","Select State"]
["Business Area","7 Standards and Conditions","Type Of Architecture"," Supporting Evidence","7SC Capability Level",null,"Assessment"]
[null,null,null,null,"As-Is ","To-Be","Date","As-Is","To-Be"]
["Business Relationship Management","Modularity Standard","Business Architecture",null,null,null,null,{"$f":"CONCATENATE(\"Level\",\" \",MIN(E5:E7))","v":"Level 0"},{"$f":"CONCATENATE(\"Level\",\" \",MIN(F5:F7))","v":"Level 0"},null,null,null,null,null,null,null,null,null,null,"Enterprise","HITECH"]
["Business Relationship Management","Modularity Standard","Information Architecture",null,null,null,null,null,null,null,null,null,null,null,null,null,null,null,null,"Enterprise","HITECH"]
["Business Relationship Management","Modularity Standard","Technical Architecture",null,null,null,null,null,null,null,null,null,null,null,null,null,null,null,null,"Enterprise","HITECH"]
["Business Relationship Management","MITA Condition","Business Architecture",null,null,null,null,{"$f":"CONCATENATE(\"Level\",\" \",MIN(E8:E10))","v":"Level 0"},"Level 0",null,null,null,null,null,null,null,null,null,null,"Enterprise","HITECH"]
["Business Relationship Management","MITA Condition","Information Architecture",null,null,null,null,null,null,null,null,null,null,null,null,null,null,null,null,"Enterprise","HITECH"]
["Business Relationship Management","MITA Condition","Technical Architecture",null,null,null,null,null,null,null,null,null,null,null,null,null,null,null,null,"Enterprise","HITECH"]
["Business Relationship Management","Industry Standards Condition","Business Architecture",null,null,null,null,{"$f":"CONCATENATE(\"Level\",\" \",MIN(E11:E13))","v":"Level 0"},"Level 0",null,null,null,null,null,null,null,null,null,null,"Enterprise","HITECH"]
["Business Relationship Management","Industry Standards Condition","Information Architecture",null,null,null,null,null,null,null,null,null,null,null,null,null,null,null,null,"Enterprise","HITECH"]
["Business Relationship Management","Industry Standards Condition","Technical Architecture",null,null,null,null,null,null,null,null,null,null,null,null,null,null,null,null,"Enterprise","HITECH"]
["Business Relationship Management","Leverage Condition","Business Architecture",null,null,null,null,{"$f":"CONCATENATE(\"Level\",\" \",MIN(E14:E16))","v":"Level 0"},"Level 0",null,null,null,null,null,null,null,null,null,null,"Enterprise","HITECH"]
["Business Relationship Management","Leverage Condition","Information Architecture",null,null,null,null,null,null,null,null,null,null,null,null,null,null,null,null,"Enterprise","HITECH"]
["Business Relationship Management","Leverage Condition","Technical Architecture",null,null,null,null,null,null,null,null,null,null,null,null,null,null,null,null,"Enterprise","HITECH"]
["Business Relationship Management","Business Results Condition","Business Architecture",null,null,null,null,{"$f":"CONCATENATE(\"Level\",\" \",MIN(E17:E19))","v":"Level 0"},"Level 0",null,null,null,null,null,null,null,null,null,null,"Enterprise","HITECH"]
["Business Relationship Management","Business Results Condition","Information Architecture",null,null,null,null,null,null,null,null,null,null,null,null,null,null,null,null,"Enterprise","HITECH"]
["Business Relationship Management","Business Results Condition","Technical Architecture",null,null,null,null,null,null,null,null,null,null,null,null,null,null,null,null,"Enterprise","HITECH"]
["Business Relationship Management","Reporting Condition","Business Architecture",null,null,null,null,{"$f":"CONCATENATE(\"Level\",\" \",MIN(E20:E22))","v":"Level 0"},"Level 0",null,null,null,null,null,null,null,null,null,null,"Enterprise","HITECH"]
["Business Relationship Management","Reporting Condition","Information Architecture",null,null,null,null,null,null,null,null,null,null,null,null,null,null,null,null,"Enterprise","HITECH"]
["Business Relationship Management","Reporting Condition","Technical Architecture",null,null,null,null,null,null,null,null,null,null,null,null,null,null,null,null,"Enterprise","HITECH"]
["Business Relationship Management","Interoperability Condition","Business Architecture",null,null,null,null,{"$f":"CONCATENATE(\"Level\",\" \",MIN(E23:E25))","v":"Level 0"},"Level 0",null,null,null,null,null,null,null,null,null,null,"Enterprise","HITECH"]
["Business Relationship Management","Interoperability Condition","Information Architecture",null,null,null,null,null,null,null,null,null,null,null,null,null,null,null,null,"Enterprise","HITECH"]
["Business Relationship Management","Interoperability Condition","Technical Architecture",null,null,null,null,null,null,null,null,null,null,null,null,null,null,null,null,"Enterprise","HITECH"]
["Care Management","Modularity Standard","Business Architecture",null,null,null,null,{"$f":"CONCATENATE(\"Level\",\" \",MIN(E26:E28))","v":"Level 0"},"Level 0",null,null,null,null,null,null,null,null,null,null,"Enterprise","HITECH"]
["Care Management","Modularity Standard","Information Architecture",null,null,null,null,null,null,null,null,null,null,null,null,null,null,null,null,"Enterprise","HITECH"]
["Care Management","Modularity Standard","Technical Architecture",null,null,null,null,null,null,null,null,null,null,null,null,null,null,null,null,"Enterprise","HITECH"]
["Care Management","MITA Condition","Business Architecture",null,null,null,null,{"$f":"CONCATENATE(\"Level\",\" \",MIN(E29:E31))","v":"Level 0"},"Level 0",null,null,null,null,null,null,null,null,null,null,"Enterprise","HITECH"]
["Care Management","MITA Condition","Information Architecture",null,null,null,null,null,null,null,null,null,null,null,null,null,null,null,null,"Enterprise","HITECH"]
["Care Management","MITA Condition","Technical Architecture",null,null,null,null,null,null,null,null,null,null,null,null,null,null,null,null,"Enterprise","HITECH"]
["Care Management","Industry Standards Condition","Business Architecture",null,null,null,null,{"$f":"CONCATENATE(\"Level\",\" \",MIN(E32:E34))","v":"Level 0"},"Level 0",null,null,null,null,null,null,null,null,null,null,"Enterprise","HITECH"]
["Care Management","Industry Standards Condition","Information Architecture",null,null,null,null,null,null,null,null,null,null,null,null,null,null,null,null,"Enterprise","HITECH"]
["Care Management","Industry Standards Condition","Technical Architecture",null,null,null,null,null,null,null,null,null,null,null,null,null,null,null,null,"Enterprise","HITECH"]
["Care Management","Leverage Condition","Business Architecture",null,null,null,null,"Level 0","Level 0",null,null,null,null,null,null,null,null,null,null,"Enterprise","HITECH"]
["Care Management","Leverage Condition","Information Architecture",null,null,null,null,null,null,null,null,null,null,null,null,null,null,null,null,"Enterprise","HITECH"]
["Care Management","Leverage Condition","Technical Architecture",null,null,null,null,null,null,null,null,null,null,null,null,null,null,null,null,"Enterprise","HITECH"]
["Care Management","Business Results Condition","Business Architecture",null,null,null,null,"Level 0","Level 0",null,null,null,null,null,null,null,null,null,null,"Enterprise","HITECH"]
["Care Management","Business Results Condition","Information Architecture",null,null,null,null,null,null,null,null,null,null,null,null,null,null,null,null,"Enterprise","HITECH"]
["Care Management","Business Results Condition","Technical Architecture",null,null,null,null,null,null,null,null,null,null,null,null,null,null,null,null,"Enterprise","HITECH"]
["Care Management","Reporting Condition","Business Architecture",null,null,null,null,"Level 0","Level 0",null,null,null,null,null,null,null,null,null,null,"Enterprise","HITECH"]
["Care Management","Reporting Condition","Information Architecture",null,null,null,null,null,null,null,null,null,null,null,null,null,null,null,null,"Enterprise","HITECH"]
["Care Management","Reporting Condition","Technical Architecture",null,null,null,null,null,null,null,null,null,null,null,null,null,null,null,null,"Enterprise","HITECH"]
["Care Management","Interoperability Condition","Business Architecture",null,null,null,null,"Level 0","Level 0",null,null,null,null,null,null,null,null,null,null,"Enterprise","HITECH"]
["Care Management","Interoperability Condition","Information Architecture",null,null,null,null,null,null,null,null,null,null,null,null,null,null,null,null,"Enterprise","HITECH"]
["Care Management","Interoperability Condition","Technical Architecture",null,null,null,null,null,null,null,null,null,null,null,null,null,null,null,null,"Enterprise","HITECH"]
["Contractor Management","Modularity Standard","Business Architecture",null,null,null,null,"Level 0","Level 0",null,null,null,null,null,null,null,null,null,null,"Enterprise"]
["Contractor Management","Modularity Standard","Information Architecture",null,null,null,null,null,null,null,null,null,null,null,null,null,null,null,null,"Enterprise"]
["Contractor Management","Modularity Standard","Technical Architecture",null,null,null,null,null,null,null,null,null,null,null,null,null,null,null,null,"Enterprise"]
["Contractor Management","MITA Condition","Business Architecture",null,null,null,null,"Level 0","Level 0",null,null,null,null,null,null,null,null,null,null,"Enterprise"]
["Contractor Management","MITA Condition","Information Architecture",null,null,null,null,null,null,null,null,null,null,null,null,null,null,null,null,"Enterprise"]
["Contractor Management","MITA Condition","Technical Architecture",null,null,null,null,null,null,null,null,null,null,null,null,null,null,null,null,"Enterprise"]
["Contractor Management","Industry Standards Condition","Business Architecture",null,null,null,null,"Level 0","Level 0",null,null,null,null,null,null,null,null,null,null,"Enterprise"]
["Contractor Management","Industry Standards Condition","Information Architecture",null,null,null,null,null,null,null,null,null,null,null,null,null,null,null,null,"Enterprise"]
["Contractor Management","Industry Standards Condition","Technical Architecture",null,null,null,null,null,null,null,null,null,null,null,null,null,null,null,null,"Enterprise"]
["Contractor Management","Leverage Condition","Business Architecture",null,null,null,null,"Level 0","Level 0",null,null,null,null,null,null,null,null,null,null,"Enterprise"]
["Contractor Management","Leverage Condition","Information Architecture",null,null,null,null,null,null,null,null,null,null,null,null,null,null,null,null,"Enterprise"]
["Contractor Management","Leverage Condition","Technical Architecture",null,null,null,null,null,null,null,null,null,null,null,null,null,null,null,null,"Enterprise"]
["Contractor Management","Business Results Condition","Business Architecture",null,null,null,null,"Level 0","Level 0",null,null,null,null,null,null,null,null,null,null,"Enterprise"]
["Contractor Management","Business Results Condition","Information Architecture",null,null,null,null,null,null,null,null,null,null,null,null,null,null,null,null,"Enterprise"]
["Contractor Management","Business Results Condition","Technical Architecture",null,null,null,null,null,null,null,null,null,null,null,null,null,null,null,null,"Enterprise"]
["Contractor Management","Reporting Condition","Business Architecture",null,null,null,null,"Level 0","Level 0",null,null,null,null,null,null,null,null,null,null,"Enterprise"]
["Contractor Management","Reporting Condition","Information Architecture",null,null,null,null,null,null,null,null,null,null,null,null,null,null,null,null,"Enterprise"]
["Contractor Management","Reporting Condition","Technical Architecture",null,null,null,null,null,null,null,null,null,null,null,null,null,null,null,null,"Enterprise"]
["Contractor Management","Interoperability Condition","Business Architecture",null,null,null,null,"Level 0","Level 0",null,null,null,null,null,null,null,null,null,null,"Enterprise"]
["Contractor Management","Interoperability Condition","Information Architecture",null,null,null,null,null,null,null,null,null,null,null,null,null,null,null,null,"Enterprise"]
["Contractor Management","Interoperability Condition","Technical Architecture",null,null,null,null,null,null,null,null,null,null,null,null,null,null,null,null,"Enterprise"]
["Eligibility and Enrollment Management","Modularity Standard","Business Architecture",null,null,null,null,"Level 0","Level 0",null,null,null,null,null,null,null,null,null,null,"Enterprise","HITECH"]
["Eligibility and Enrollment Management","Modularity Standard","Information Architecture",null,null,null,null,null,null,null,null,null,null,null,null,null,null,null,null,"Enterprise","HITECH"]
["Eligibility and Enrollment Management","Modularity Standard","Technical Architecture",null,null,null,null,null,null,null,null,null,null,null,null,null,null,null,null,"Enterprise","HITECH"]
["Eligibility and Enrollment Management","MITA Condition","Business Architecture",null,null,null,null,"Level 0","Level 0",null,null,null,null,null,null,null,null,null,null,"Enterprise","HITECH"]
["Eligibility and Enrollment Management","MITA Condition","Information Architecture",null,null,null,null,null,null,null,null,null,null,null,null,null,null,null,null,"Enterprise","HITECH"]
["Eligibility and Enrollment Management","MITA Condition","Technical Architecture",null,null,null,null,null,null,null,null,null,null,null,null,null,null,null,null,"Enterprise","HITECH"]
["Eligibility and Enrollment Management","Industry Standards Condition","Business Architecture",null,null,null,null,"Level 0","Level 0",null,null,null,null,null,null,null,null,null,null,"Enterprise","HITECH"]
["Eligibility and Enrollment Management","Industry Standards Condition","Information Architecture",null,null,null,null,null,null,null,null,null,null,null,null,null,null,null,null,"Enterprise","HITECH"]
["Eligibility and Enrollment Management","Industry Standards Condition","Technical Architecture",null,null,null,null,null,null,null,null,null,null,null,null,null,null,null,null,"Enterprise","HITECH"]
["Eligibility and Enrollment Management","Leverage Condition","Business Architecture",null,null,null,null,"Level 0","Level 0",null,null,null,null,null,null,null,null,null,null,"Enterprise","HITECH"]
["Eligibility and Enrollment Management","Leverage Condition","Information Architecture",null,null,null,null,null,null,null,null,null,null,null,null,null,null,null,null,"Enterprise","HITECH"]
["Eligibility and Enrollment Management","Leverage Condition","Technical Architecture",null,null,null,null,null,null,null,null,null,null,null,null,null,null,null,null,"Enterprise","HITECH"]
["Eligibility and Enrollment Management","Business Results Condition","Business Architecture",null,null,null,null,"Level 0","Level 0",null,null,null,null,null,null,null,null,null,null,"Enterprise","HITECH"]
["Eligibility and Enrollment Management","Business Results Condition","Information Architecture",null,null,null,null,null,null,null,null,null,null,null,null,null,null,null,null,"Enterprise","HITECH"]
["Eligibility and Enrollment Management","Business Results Condition","Technical Architecture",null,null,null,null,null,null,null,null,null,null,null,null,null,null,null,null,"Enterprise","HITECH"]
["Eligibility and Enrollment Management","Reporting Condition","Business Architecture",null,null,null,null,"Level 0","Level 0",null,null,null,null,null,null,null,null,null,null,"Enterprise","HITECH"]
["Eligibility and Enrollment Management","Reporting Condition","Information Architecture",null,null,null,null,null,null,null,null,null,null,null,null,null,null,null,null,"Enterprise","HITECH"]
["Eligibility and Enrollment Management","Reporting Condition","Technical Architecture",null,null,null,null,null,null,null,null,null,null,null,null,null,null,null,null,"Enterprise","HITECH"]
["Eligibility and Enrollment Management","Interoperability Condition","Business Architecture",null,null,null,null,"Level 0","Level 0",null,null,null,null,null,null,null,null,null,null,"Enterprise","HITECH"]
["Eligibility and Enrollment Management","Interoperability Condition","Information Architecture",null,null,null,null,null,null,null,null,null,null,null,null,null,null,null,null,"Enterprise","HITECH"]
["Eligibility and Enrollment Management","Interoperability Condition","Technical Architecture",null,null,null,null,null,null,null,null,null,null,null,null,null,null,null,null,"Enterprise","HITECH"]
["Financial Management","Modularity Standard","Business Architecture",null,null,null,null,"Level 0","Level 0",null,null,null,null,null,null,null,null,null,null,"Enterprise","HITECH"]
["Financial Management","Modularity Standard","Information Architecture",null,null,null,null,null,null,null,null,null,null,null,null,null,null,null,null,"Enterprise","HITECH"]
["Financial Management","Modularity Standard","Technical Architecture",null,null,null,null,null,null,null,null,null,null,null,null,null,null,null,null,"Enterprise","HITECH"]
["Financial Management","MITA Condition","Business Architecture",null,null,null,null,"Level 0","Level 0",null,null,null,null,null,null,null,null,null,null,"Enterprise","HITECH"]
["Financial Management","MITA Condition","Information Architecture",null,null,null,null,null,null,null,null,null,null,null,null,null,null,null,null,"Enterprise","HITECH"]
["Financial Management","MITA Condition","Technical Architecture",null,null,null,null,null,null,null,null,null,null,null,null,null,null,null,null,"Enterprise","HITECH"]
["Financial Management","Industry Standards Condition","Business Architecture",null,null,null,null,"Level 0","Level 0",null,null,null,null,null,null,null,null,null,null,"Enterprise","HITECH"]
["Financial Management","Industry Standards Condition","Information Architecture",null,null,null,null,null,null,null,null,null,null,null,null,null,null,null,null,"Enterprise","HITECH"]
["Financial Management","Industry Standards Condition","Technical Architecture",null,null,null,null,null,null,null,null,null,null,null,null,null,null,null,null,"Enterprise","HITECH"]
["Financial Management","Leverage Condition","Business Architecture",null,null,null,null,{"$f":"CONCATENATE(\"Level\",\" \",MIN(E98:E100))","v":"Level 0"},"Level 0",null,null,null,null,null,null,null,null,null,null,"Enterprise","HITECH"]
["Financial Management","Leverage Condition","Information Architecture",null,null,null,null,null,null,null,null,null,null,null,null,null,null,null,null,"Enterprise","HITECH"]
["Financial Management","Leverage Condition","Technical Architecture",null,null,null,null,null,null,null,null,null,null,null,null,null,null,null,null,"Enterprise","HITECH"]
["Financial Management","Business Results Condition","Business Architecture",null,null,null,null,"Level 0","Level 0",null,null,null,null,null,null,null,null,null,null,"Enterprise","HITECH"]
["Financial Management","Business Results Condition","Information Architecture",null,null,null,null,null,null,null,null,null,null,null,null,null,null,null,null,"Enterprise","HITECH"]
["Financial Management","Business Results Condition","Technical Architecture",null,null,null,null,null,null,null,null,null,null,null,null,null,null,null,null,"Enterprise","HITECH"]
["Financial Management","Reporting Condition","Business Architecture",null,null,null,null,"Level 0","Level 0",null,null,null,null,null,null,null,null,null,null,"Enterprise","HITECH"]
["Financial Management","Reporting Condition","Information Architecture",null,null,null,null,null,null,null,null,null,null,null,null,null,null,null,null,"Enterprise","HITECH"]
["Financial Management","Reporting Condition","Technical Architecture",null,null,null,null,null,null,null,null,null,null,null,null,null,null,null,null,"Enterprise","HITECH"]
["Financial Management","Interoperability Condition","Business Architecture",null,null,null,null,"Level 0","Level 0",null,null,null,null,null,null,null,null,null,null,"Enterprise","HITECH"]
["Financial Management","Interoperability Condition","Information Architecture",null,null,null,null,null,null,null,null,null,null,null,null,null,null,null,null,"Enterprise","HITECH"]
["Financial Management","Interoperability Condition","Technical Architecture",null,null,null,null,null,null,null,null,null,null,null,null,null,null,null,null,"Enterprise","HITECH"]
["Member Management","Modularity Standard","Business Architecture",null,null,null,null,"Level 0","Level 0",null,null,null,null,null,null,null,null,null,null,"Enterprise","HITECH"]
["Member Management","Modularity Standard","Information Architecture",null,null,null,null,null,null,null,null,null,null,null,null,null,null,null,null,"Enterprise","HITECH"]
["Member Management","Modularity Standard","Technical Architecture",null,null,null,null,null,null,null,null,null,null,null,null,null,null,null,null,"Enterprise","HITECH"]
["Member Management","MITA Condition","Business Architecture",null,null,null,null,"Level 0","Level 0",null,null,null,null,null,null,null,null,null,null,"Enterprise","HITECH"]
["Member Management","MITA Condition","Information Architecture",null,null,null,null,null,null,null,null,null,null,null,null,null,null,null,null,"Enterprise","HITECH"]
["Member Management","MITA Condition","Technical Architecture",null,null,null,null,null,null,null,null,null,null,null,null,null,null,null,null,"Enterprise","HITECH"]
["Member Management","Industry Standards Condition","Business Architecture",null,null,null,null,"Level 0","Level 0",null,null,null,null,null,null,null,null,null,null,"Enterprise","HITECH"]
["Member Management","Industry Standards Condition","Information Architecture",null,null,null,null,null,null,null,null,null,null,null,null,null,null,null,null,"Enterprise","HITECH"]
["Member Management","Industry Standards Condition","Technical Architecture",null,null,null,null,null,null,null,null,null,null,null,null,null,null,null,null,"Enterprise","HITECH"]
["Member Management","Leverage Condition","Business Architecture",null,null,null,null,"Level 0","Level 0",null,null,null,null,null,null,null,null,null,null,"Enterprise","HITECH"]
["Member Management","Leverage Condition","Information Architecture",null,null,null,null,null,null,null,null,null,null,null,null,null,null,null,null,"Enterprise","HITECH"]
["Member Management","Leverage Condition","Technical Architecture",null,null,null,null,null,null,null,null,null,null,null,null,null,null,null,null,"Enterprise","HITECH"]
["Member Management","Business Results Condition","Business Architecture",null,null,null,null,"Level 0","Level 0",null,null,null,null,null,null,null,null,null,null,"Enterprise","HITECH"]
["Member Management","Business Results Condition","Information Architecture",null,null,null,null,null,null,null,null,null,null,null,null,null,null,null,null,"Enterprise","HITECH"]
["Member Management","Business Results Condition","Technical Architecture",null,null,null,null,null,null,null,null,null,null,null,null,null,null,null,null,"Enterprise","HITECH"]
["Member Management","Reporting Condition","Business Architecture",null,null,null,null,"Level 0","Level 0",null,null,null,null,null,null,null,null,null,null,"Enterprise","HITECH"]
["Member Management","Reporting Condition","Information Architecture",null,null,null,null,null,null,null,null,null,null,null,null,null,null,null,null,"Enterprise","HITECH"]
["Member Management","Reporting Condition","Technical Architecture",null,null,null,null,null,null,null,null,null,null,null,null,null,null,null,null,"Enterprise","HITECH"]
["Member Management","Interoperability Condition","Business Architecture",null,null,null,null,"Level 0","Level 0",null,null,null,null,null,null,null,null,null,null,"Enterprise","HITECH"]
["Member Management","Interoperability Condition","Information Architecture",null,null,null,null,null,null,null,null,null,null,null,null,null,null,null,null,"Enterprise","HITECH"]
["Member Management","Interoperability Condition","Technical Architecture",null,null,null,null,null,null,null,null,null,null,null,null,null,null,null,null,"Enterprise","HITECH"]
["Operations Management","Modularity Standard","Business Architecture",null,null,null,null,"Level 0","Level 0",null,null,null,null,null,null,null,null,null,null,"Enterprise"]
["Operations Management","Modularity Standard","Information Architecture",null,null,null,null,null,null,null,null,null,null,null,null,null,null,null,null,"Enterprise"]
["Operations Management","Modularity Standard","Technical Architecture",null,null,null,null,null,null,null,null,null,null,null,null,null,null,null,null,"Enterprise"]
["Operations Management","MITA Condition","Business Architecture",null,null,null,null,"Level 0","Level 0",null,null,null,null,null,null,null,null,null,null,"Enterprise"]
["Operations Management","MITA Condition","Information Architecture",null,null,null,null,null,null,null,null,null,null,null,null,null,null,null,null,"Enterprise"]
["Operations Management","MITA Condition","Technical Architecture",null,null,null,null,null,null,null,null,null,null,null,null,null,null,null,null,"Enterprise"]
["Operations Management","Industry Standards Condition","Business Architecture",null,null,null,null,"Level 0","Level 0",null,null,null,null,null,null,null,null,null,null,"Enterprise"]
["Operations Management","Industry Standards Condition","Information Architecture",null,null,null,null,null,null,null,null,null,null,null,null,null,null,null,null,"Enterprise"]
["Operations Management","Industry Standards Condition","Technical Architecture",null,null,null,null,null,null,null,null,null,null,null,null,null,null,null,null,"Enterprise"]
["Operations Management","Leverage Condition","Business Architecture",null,null,null,null,{"$f":"CONCATENATE(\"Level\",\" \",MIN(E140:E142))","v":"Level 0"},"Level 0",null,null,null,null,null,null,null,null,null,null,"Enterprise"]
["Operations Management","Leverage Condition","Information Architecture",null,null,null,null,null,null,null,null,null,null,null,null,null,null,null,null,"Enterprise"]
["Operations Management","Leverage Condition","Technical Architecture",null,null,null,null,null,null,null,null,null,null,null,null,null,null,null,null,"Enterprise"]
["Operations Management","Business Results Condition","Business Architecture",null,null,null,null,"Level 0","Level 0",null,null,null,null,null,null,null,null,null,null,"Enterprise"]
["Operations Management","Business Results Condition","Information Architecture",null,null,null,null,null,null,null,null,null,null,null,null,null,null,null,null,"Enterprise"]
["Operations Management","Business Results Condition","Technical Architecture",null,null,null,null,null,null,null,null,null,null,null,null,null,null,null,null,"Enterprise"]
["Operations Management","Reporting Condition","Business Architecture",null,null,null,null,"Level 0","Level 0",null,null,null,null,null,null,null,null,null,null,"Enterprise"]
["Operations Management","Reporting Condition","Information Architecture",null,null,null,null,null,null,null,null,null,null,null,null,null,null,null,null,"Enterprise"]
["Operations Management","Reporting Condition","Technical Architecture",null,null,null,null,null,null,null,null,null,null,null,null,null,null,null,null,"Enterprise"]
["Operations Management","Interoperability Condition","Business Architecture",null,null,null,null,"Level 0","Level 0",null,null,null,null,null,null,null,null,null,null,"Enterprise"]
["Operations Management","Interoperability Condition","Information Architecture",null,null,null,null,null,null,null,null,null,null,null,null,null,null,null,null,"Enterprise"]
["Operations Management","Interoperability Condition","Technical Architecture",null,null,null,null,null,null,null,null,null,null,null,null,null,null,null,null,"Enterprise"]
["Performance Management","Modularity Standard","Business Architecture",null,null,null,null,"Level 0","Level 0",null,null,null,null,null,null,null,null,null,null,"Enterprise","HITECH"]
["Performance Management","Modularity Standard","Information Architecture",null,null,null,null,null,null,null,null,null,null,null,null,null,null,null,null,"Enterprise","HITECH"]
["Performance Management","Modularity Standard","Technical Architecture",null,null,null,null,null,null,null,null,null,null,null,null,null,null,null,null,"Enterprise","HITECH"]
["Performance Management","MITA Condition","Business Architecture",null,null,null,null,"Level 0","Level 0",null,null,null,null,null,null,null,null,null,null,"Enterprise","HITECH"]
["Performance Management","MITA Condition","Information Architecture",null,null,null,null,null,null,null,null,null,null,null,null,null,null,null,null,"Enterprise","HITECH"]
["Performance Management","MITA Condition","Technical Architecture",null,null,null,null,null,null,null,null,null,null,null,null,null,null,null,null,"Enterprise","HITECH"]
["Performance Management","Industry Standards Condition","Business Architecture",null,null,null,null,"Level 0","Level 0",null,null,null,null,null,null,null,null,null,null,"Enterprise","HITECH"]
["Performance Management","Industry Standards Condition","Information Architecture",null,null,null,null,null,null,null,null,null,null,null,null,null,null,null,null,"Enterprise","HITECH"]
["Performance Management","Industry Standards Condition","Technical Architecture",null,null,null,null,null,null,null,null,null,null,null,null,null,null,null,null,"Enterprise","HITECH"]
["Performance Management","Leverage Condition","Business Architecture",null,null,null,null,"Level 0","Level 0",null,null,null,null,null,null,null,null,null,null,"Enterprise","HITECH"]
["Performance Management","Leverage Condition","Information Architecture",null,null,null,null,null,null,null,null,null,null,null,null,null,null,null,null,"Enterprise","HITECH"]
["Performance Management","Leverage Condition","Technical Architecture",null,null,null,null,null,null,null,null,null,null,null,null,null,null,null,null,"Enterprise","HITECH"]
["Performance Management","Business Results Condition","Business Architecture",null,null,null,null,"Level 0","Level 0",null,null,null,null,null,null,null,null,null,null,"Enterprise","HITECH"]
["Performance Management","Business Results Condition","Information Architecture",null,null,null,null,null,null,null,null,null,null,null,null,null,null,null,null,"Enterprise","HITECH"]
["Performance Management","Business Results Condition","Technical Architecture",null,null,null,null,null,null,null,null,null,null,null,null,null,null,null,null,"Enterprise","HITECH"]
["Performance Management","Reporting Condition","Business Architecture",null,null,null,null,"Level 0","Level 0",null,null,null,null,null,null,null,null,null,null,"Enterprise","HITECH"]
["Performance Management","Reporting Condition","Information Architecture",null,null,null,null,null,null,null,null,null,null,null,null,null,null,null,null,"Enterprise","HITECH"]
["Performance Management","Reporting Condition","Technical Architecture",null,null,null,null,null,null,null,null,null,null,null,null,null,null,null,null,"Enterprise","HITECH"]
["Performance Management","Interoperability Condition","Business Architecture",null,null,null,null,"Level 0","Level 0",null,null,null,null,null,null,null,null,null,null,"Enterprise","HITECH"]
["Performance Management","Interoperability Condition","Information Architecture",null,null,null,null,null,null,null,null,null,null,null,null,null,null,null,null,"Enterprise","HITECH"]
["Performance Management","Interoperability Condition","Technical Architecture",null,null,null,null,null,null,null,null,null,null,null,null,null,null,null,null,"Enterprise","HITECH"]
["Plan Management","Modularity Standard","Business Architecture",null,null,null,null,"Level 0","Level 0",null,null,null,null,null,null,null,null,null,null,"Enterprise","HITECH"]
["Plan Management","Modularity Standard","Information Architecture",null,null,null,null,null,null,null,null,null,null,null,null,null,null,null,null,"Enterprise","HITECH"]
["Plan Management","Modularity Standard","Technical Architecture",null,null,null,null,null,null,null,null,null,null,null,null,null,null,null,null,"Enterprise","HITECH"]
["Plan Management","MITA Condition","Business Architecture",null,null,null,null,"Level 0","Level 0",null,null,null,null,null,null,null,null,null,null,"Enterprise","HITECH"]
["Plan Management","MITA Condition","Information Architecture",null,null,null,null,null,null,null,null,null,null,null,null,null,null,null,null,"Enterprise","HITECH"]
["Plan Management","MITA Condition","Technical Architecture",null,null,null,null,null,null,null,null,null,null,null,null,null,null,null,null,"Enterprise","HITECH"]
["Plan Management","Industry Standards Condition","Business Architecture",null,null,null,null,"Level 0","Level 0",null,null,null,null,null,null,null,null,null,null,"Enterprise","HITECH"]
["Plan Management","Industry Standards Condition","Information Architecture",null,null,null,null,null,null,null,null,null,null,null,null,null,null,null,null,"Enterprise","HITECH"]
["Plan Management","Industry Standards Condition","Technical Architecture",null,null,null,null,null,null,null,null,null,null,null,null,null,null,null,null,"Enterprise","HITECH"]
["Plan Management","Leverage Condition","Business Architecture",null,null,null,null,"Level 0","Level 0",null,null,null,null,null,null,null,null,null,null,"Enterprise","HITECH"]
["Plan Management","Leverage Condition","Information Architecture",null,null,null,null,null,null,null,null,null,null,null,null,null,null,null,null,"Enterprise","HITECH"]
["Plan Management","Leverage Condition","Technical Architecture",null,null,null,null,null,null,null,null,null,null,null,null,null,null,null,null,"Enterprise","HITECH"]
["Plan Management","Business Results Condition","Business Architecture",null,null,null,null,"Level 0","Level 0",null,null,null,null,null,null,null,null,null,null,"Enterprise","HITECH"]
["Plan Management","Business Results Condition","Information Architecture",null,null,null,null,null,null,null,null,null,null,null,null,null,null,null,null,"Enterprise","HITECH"]
["Plan Management","Business Results Condition","Technical Architecture",null,null,null,null,null,null,null,null,null,null,null,null,null,null,null,null,"Enterprise","HITECH"]
["Plan Management","Reporting Condition","Business Architecture",null,null,null,null,"Level 0","Level 0",null,null,null,null,null,null,null,null,null,null,"Enterprise","HITECH"]
["Plan Management","Reporting Condition","Information Architecture",null,null,null,null,null,null,null,null,null,null,null,null,null,null,null,null,"Enterprise","HITECH"]
["Plan Management","Reporting Condition","Technical Architecture",null,null,null,null,null,null,null,null,null,null,null,null,null,null,null,null,"Enterprise","HITECH"]
["Plan Management","Interoperability Condition","Business Architecture",null,null,null,null,"Level 0","Level 0",null,null,null,null,null,null,null,null,null,null,"Enterprise","HITECH"]
["Plan Management","Interoperability Condition","Information Architecture",null,null,null,null,null,null,null,null,null,null,null,null,null,null,null,null,"Enterprise","HITECH"]
["Plan Management","Interoperability Condition","Technical Architecture",null,null,null,null,null,null,null,null,null,null,null,null,null,null,null,null,"Enterprise","HITECH"]
["Provider Management","Modularity Standard","Business Architecture",null,null,null,null,"Level 0","Level 0",null,null,null,null,null,null,null,null,null,null,"Enterprise","HITECH"]
["Provider Management","Modularity Standard","Information Architecture",null,null,null,null,null,null,null,null,null,null,null,null,null,null,null,null,"Enterprise","HITECH"]
["Provider Management","Modularity Standard","Technical Architecture",null,null,null,null,null,null,null,null,null,null,null,null,null,null,null,null,"Enterprise","HITECH"]
["Provider Management","MITA Condition","Business Architecture",null,null,null,null,"Level 0","Level 0",null,null,null,null,null,null,null,null,null,null,"Enterprise","HITECH"]
["Provider Management","MITA Condition","Information Architecture",null,null,null,null,null,null,null,null,null,null,null,null,null,null,null,null,"Enterprise","HITECH"]
["Provider Management","MITA Condition","Technical Architecture",null,null,null,null,null,null,null,null,null,null,null,null,null,null,null,null,"Enterprise","HITECH"]
["Provider Management","Industry Standards Condition","Business Architecture",null,null,null,null,"Level 0","Level 0",null,null,null,null,null,null,null,null,null,null,"Enterprise","HITECH"]
["Provider Management","Industry Standards Condition","Information Architecture",null,null,null,null,null,null,null,null,null,null,null,null,null,null,null,null,"Enterprise","HITECH"]
["Provider Management","Industry Standards Condition","Technical Architecture",null,null,null,null,null,null,null,null,null,null,null,null,null,null,null,null,"Enterprise","HITECH"]
["Provider Management","Leverage Condition","Business Architecture",null,null,null,null,"Level 0","Level 0",null,null,null,null,null,null,null,null,null,null,"Enterprise","HITECH"]
["Provider Management","Leverage Condition","Information Architecture",null,null,null,null,null,null,null,null,null,null,null,null,null,null,null,null,"Enterprise","HITECH"]
["Provider Management","Leverage Condition","Technical Architecture",null,null,null,null,null,null,null,null,null,null,null,null,null,null,null,null,"Enterprise","HITECH"]
["Provider Management","Business Results Condition","Business Architecture",null,null,null,null,{"$f":"CONCATENATE(\"Level\",\" \",MIN(E206:E208))","v":"Level 0"},{"$f":"CONCATENATE(\"Level\",\" \",MIN(F206:F208))","v":"Level 0"},null,null,null,null,null,null,null,null,null,null,"Enterprise","HITECH"]
["Provider Management","Business Results Condition","Information Architecture",null,null,null,null,null,null,null,null,null,null,null,null,null,null,null,null,"Enterprise","HITECH"]
["Provider Management","Business Results Condition","Technical Architecture",null,null,null,null,null,null,null,null,null,null,null,null,null,null,null,null,"Enterprise","HITECH"]
["Provider Management","Reporting Condition","Business Architecture",null,null,null,null,"Level 0","Level 0",null,null,null,null,null,null,null,null,null,null,"Enterprise","HITECH"]
["Provider Management","Reporting Condition","Information Architecture",null,null,null,null,null,null,null,null,null,null,null,null,null,null,null,null,"Enterprise","HITECH"]
["Provider Management","Reporting Condition","Technical Architecture",null,null,null,null,null,null,null,null,null,null,null,null,null,null,null,null,"Enterprise","HITECH"]
["Provider Management","Interoperability Condition","Business Architecture",null,null,null,null,"Level 0","Level 0",null,null,null,null,null,null,null,null,null,null,"Enterprise","HITECH"]
["Provider Management","Interoperability Condition","Information Architecture",null,null,null,null,null,null,null,null,null,null,null,null,null,null,null,null,"Enterprise","HITECH"]
["Provider Management","Interoperability Condition","Technical Architecture",null,null,null,null,null,null,null,null,null,null,null,null,null,null,null,null,"Enterprise","HITECH"]

{"sheet":"Validation","index":5,"n_rows":57,"n_cols":10,"rows_kept":57,"cut":false,"hidden":true,"merged":[[6,3,6,4],[7,3,7,4],[9,3,9,4],[10,3,10,4],[11,3,11,4],[8,3,8,4],[5,3,5,4],[0,3,0,4],[1,3,1,4],[2,3,2,4],[3,3,3,4],[4,3,4,4]]}
["HITECH BP ID","MITA Business Process Code","MITA Business Process","Description",null,null,"State ID","Maturity Level Assignment",null,"Assessment Program"]
[1,"FM12","FM12 Manage Incentive Payment","Disseminates federal policy, covers provider application for payment, eligibility requirements, compliance activities (attestation), payment determination by state and concludes with approval of payment",null,null,"Select State",1,null,"Select Program"]
[2,"PL03","PL03 Manage Program Policy","Establishes and describes the EHR Incentive Program",null,null,"AK",2,null,"Enterprise"]
[3,"PM01","PM01 Manage Provider Information","Systems that store provider registration data and Data store storing attestations and CQM",null,null,"AL",3,null,"HITECH"]
[4,"PM02","PM02 Manage Provider Communication","Call Center support, websites and guidance published from State",null,null,"AR",4]
[5,"PM03","PM03 Perform Provider Outreach","Work with RECs on provider education of EHR",null,null,"AZ",5]
[6,"EE06","EE06 Enroll Provider","Accept provider registration data from NLR",null,null,"CA","N/A"]
[7,"ME01","ME01 Manage Member Information (future release)","Management of beneficiary information in HIE ",null,null,"CO"]
[8,"ME02","ME02 Manage Applicant and Member Communication (Under Development)","Manage the communication with the Member.",null,null,"CT"]
[9,"PM07","PM07 Manage Provider Grievance and Appeal","Management of appeals from providers for incentive payments",null,null,"DC"]
[10,"FM18","FM18 Manage Fund","Management of FFP for EHR",null,null,"DE"]
[11,"PE01","PE01 Identify Utilization Anomalies","Auditing activities",null,null,"FL"]
[null,null,null,null,null,null,"GA"]
[null,null,null,null,null,null,"GU"]
[null,null,null,null,null,null,"HI"]
[null,null,null,null,null,null,"IA"]
[null,null,null,null,null,null,"ID"]
[null,null,null,null,null,null,"IL"]
[null,null,null,null,null,null,"IN"]
[null,null,null,null,null,null,"KS"]
[null,null,null,null,null,null,"KY"]
[null,null,null,null,null,null,"LA"]
[null,null,null,null,null,null,"MA"]
[null,null,null,null,null,null,"MD"]
[null,null,null,null,null,null,"ME"]
[null,null,null,null,null,null,"MI"]
[null,null,null,null,null,null,"MN"]
[null,null,null,null,null,null,"MO"]
[null,null,null,null,null,null,"MS"]
[null,null,null,null,null,null,"MT"]
[null,null,null,null,null,null,"NC"]
[null,null,null,null,null,null,"ND"]
[null,null,null,null,null,null,"NE"]
[null,null,null,null,null,null,"NH"]
[null,null,null,null,null,null,"NJ"]
[null,null,null,null,null,null,"NM"]
[null,null,null,null,null,null,"NV"]
[null,null,null,null,null,null,"NY"]
[null,null,null,null,null,null,"OH"]
[null,null,null,null,null,null,"OK"]
[null,null,null,null,null,null,"OR"]
[null,null,null,null,null,null,"PA"]
[null,null,null,null,null,null,"PR"]
[null,null,null,null,null,null,"RI"]
[null,null,null,null,null,null,"SC"]
[null,null,null,null,null,null,"SD"]
[null,null,null,null,null,null,"TN"]
[null,null,null,null,null,null,"TX"]
[null,null,null,null,null,null,"UT"]
[null,null,null,null,null,null,"VA"]
[null,null,null,null,null,null,"VI"]
[null,null,null,null,null,null,"VT"]
[null,null,null,null,null,null,"WA"]
[null,null,null,null,null,null,"WI"]
[null,null,null,null,null,null,"WV"]
[null,null,null,null,null,null,"WY"]
[null,null,null,null,null,null,"XX"]